Workbook

Sheet Formulario
C1: Formulario de Cálculo Aportes al FCEE por S&C1
B4: INFORMACIÓN DE LA ENTIDAD
B6: Fecha | D6: =+TODAY() -> 2026-03-06
B7: Nombre Entidad | D7: =IFERROR(VLOOKUP(D8,Desv,2,FALSE),"") -> 
B8: NIT de la Entidad
B9: Nombres y apellidos
B10: Dependencia
B11: Teléfono de contacto
B12: Correo electrónico
B13: =IFERROR(IF(D8="","",VLOOKUP(D8,Calendario,3,FALSE)),"") -> 
B14: ¿Desea excluir procesos atípicos? Oprima el botón "Procesos (Exclusión)"
B15: INFORMACIÓN GENERAL DE LOS PROCESOS EKOGUI
B17: Total procesos eKOGUI
B18: Desviación estándar | D18: =IF(D17="","",VLOOKUP(D8,Desv,4,FALSE)) -> 
B19: Monto de exclusión2
B20: No. Procesos excluidos
B21: Procesos atípicos3
B22: Procesos en cero4
B23: Procesos anteriores a 20195
B24: Total No. Procesos
B26: ESTADO DE CUENTA DE LOS APORTES AL FCEE POR S&C
B28: Valor aportes apropiados 20266
B29: Estado de cuenta 31/12/20257 | D29: =IFERROR(IF(D17="","",VLOOKUP(D8,Aportes_FCEE,4,FALSE)),"") -> 
B31: Oprima el botón "Aplicar Metodología", para valorar el Pasivo Contingente Judicial y el Aporte al FCEE por S&C
B32: VALORES FINALES
B34: Pasivo Contingente Judicial
B35: Total de Aportes al FCEE por S&C
B36: Valor de Aporte Vigencia 20278
B37: =IF(D36<0,"*Para esta vigencia su entidad NO debe realizar aportes al fondo de sentencias y conciliaciones","") -> 
B38: Nota: En el cálculo del aporte su entidad no realizo exclusión de procesos.
B39: 1. FCEE por S&C: Fondo de Contingencias de las Entidades Estatales por Sentencias y Conciliaciones. 2. Monto de exclusión: Valor a partir del cual se excluyen los procesos por encima de la media aritmética. 3. Procesos atípicos: En concordancia con los principios de materialidad, razonabilidad y análisis del riesgo establecidos en la Resolución 2159 de 2020, se consideran procesos atípicos aquellos cuyo valor ajustado supera un umbral estadístico definido como el promedio de los valores ajustados más un múltiplo de la desviación estándar, y que adicionalmente presentan una probabilidad total inferior a 0,7. Estos procesos representan eventos de impacto económico excepcional que se apartan significativamente del comportamiento general de la cartera, por lo cual se identifican de manera diferenciada para efectos de análisis y validación. 4. Por favor revisar estos procesos teniendo en cuenta lo dispuesto en el artículo 194 de la ley 1437 de 2011 : “(…) en la medida en que una contingencia se encuentre debidamente provisionada en el Fondo de Contingencias, y se genere la obligación de pago de la condena, este se hará con base en el procedimiento descrito en el artículo siguiente. Los procesos cuya condena quede ejecutoriada antes de valorar la contingencia, se pagarán directamente con cargo al presupuesto de la respectiva entidad”. 5. Por favor revisar la información registrada de estos procesos dado que el ámbito de aplicación corresponde a los procesos judiciales cuya notificación del auto admisorio de la demanda se dio a partir del 1 de enero de 2019. De acuerdo con lo dispuesto en el ARTÍCULO 2.4.4.2. Ámbito de aplicación. Del decreto 1068 de 2015. Por lo tanto, procesos con auto de admisión anteriores a esta fecha no pueden ser pagados por el Fondo de Contingencias. 6. Valor aportes apropiados en 2026: solo se puede tener en cuenta aportes que cuentan con respaldo presupuestal y que se van a realizar efectivamente durante la vigencia 2026. 7. Saldo en el Fondo 31/12/2025: Hace referencia al valor que se encuentra en el Fondo de Contingencias de las Entidades Estatales por Sentencias y Conciliaciones, de acuerdo con el estado de cuenta emitido por la Fiduprevisora a esta fecha de corte. 8. De manera anual y de acuerdo con el calendario que estará publicado en la página web del Ministerio de Hacienda y Crédito Público; se debe enviar para aprobación el presente formulario en el período previo a la vigencia en la que se realizará el aporte.

Sheet Datos eKOGUI (hidden)
A2: PROC_NRO_RAMA_ASIG | B2: PROC_ID | C2: ENT_ID | D2: ENT_ENTIDAD | E2: CALSUJP_CALIDAD_SUJETO | F2: VALOR_PRETENSION_TOTAL | G2: VALOR_JURAMENTO | H2: VALOR_ESTIMACION | I2: VALOR_ECONOMICO_PROCESO | J2: PORCENTAJE | K2: JUR_ID | L2: JURISDICCION | M2: ACJ_ID | N2: ACCION_JUDICIAL | O2: CAUSA_ID | P2: CAUSA | Q2: INSTANCIA | R2: FALLO_PRIM | S2: FALLO_SEG | T2: CRITERIO_1 | U2: CRITERIO_2 | V2: CRITERIO_3 | W2: CRITERIO_4 | X2: FECHA_ADMISION | Y2: PRETENSION_DETERMINADA | Z2: RELACION_CONDENA | AA2: VALOR_AJUSTADO | AB2: FECHA_CALIFICACION | AC2: SECTOR_ID | AD2: SECTOR | AE2: PROBABILIDAD_ABOGADO | AF2: PROBABILIDAD_HISTORICA | AG2: PROBABILIDAD_TOTAL | AH2: DURACION_ESTIMADA | AI2: FECHA_FALLO1 | AJ2: FECHA_FALLO2 | AK2: FECHA_NOTIFICACION | AL2: ENT_ID_PADRE | AM2: ESTADO_PROCESO | AN2: CONTIGENTE | AO2: DIAS ESTIMADOS | AP2: FECHA ESTIMADA | AQ2: AÑO ESTIMADO | AR2: TIEMPO ESTIMADO | AS2: APORTE

Sheet Base eKOGUI
A1: Formulario Contingente por Proceso
A2: PROC_NRO_RAMA_ASIG | B2: PROC_ID | C2: ENT_ID | D2: ENT_ENTIDAD | E2: CALSUJP_CALIDAD_SUJETO | F2: VALOR_PRETENSION_TOTAL | G2: VALOR_JURAMENTO | H2: VALOR_ESTIMACION | I2: VALOR_ECONOMICO_PROCESO | J2: PORCENTAJE | K2: JUR_ID | L2: JURISDICCION | M2: ACJ_ID | N2: ACCION_JUDICIAL | O2: CAUSA_ID | P2: CAUSA | Q2: INSTANCIA | R2: FALLO_PRIM | S2: FALLO_SEG | T2: CRITERIO_1 | U2: CRITERIO_2 | V2: CRITERIO_3 | W2: CRITERIO_4 | X2: FECHA_ADMISION | Y2: PRETENSION_DETERMINADA | Z2: RELACION_CONDENA | AA2: VALOR_AJUSTADO | AB2: FECHA_CALIFICACION | AC2: SECTOR_ID | AD2: SECTOR | AE2: PROBABILIDAD_ABOGADO | AF2: PROBABILIDAD_HISTORICA | AG2: PROBABILIDAD_TOTAL | AH2: DURACION_ESTIMADA | AI2: FECHA_FALLO1 | AJ2: FECHA_FALLO2 | AK2: FECHA_NOTIFICACION | AL2: ENT_ID_PADRE | AM2: GENERA_EROGACION

Sheet Desv (hidden)
C1: Transición | D1: 1 | E1: Año actual | F1: 2026
A2: NIT | B2: Nombre de la Entidad | C2: ID Entidad | D2: No de Desviaciones | E2: Entidad sin Proceso
A3: 800072977 | B3: FONDO ROTATORIO DEL DANE | C3: 462 | D3: 2
A4: 800093816 | B4: DIRECCION EJECUTIVA DE ADMINISTRACION JUDICIAL-RAMA JUDICIAL | C4: 426 | D4: 0.1814046312
A5: 800093816 | B5: CONSEJO SUPERIOR DE LA JUDICATURA | C5: 426 | D5: 0.1814046312
A6: 800093816 | B6: CORTE CONSTITUCIONAL | C6: 426 | D6: 0.1814046312
A7: 800093816 | B7: CORTE SUPREMA DE JUSTICIA | C7: 426 | D7: 0.1814046312
A8: 800093816 | B8: CONSEJO DE ESTADO | C8: 426 | D8: 0.1814046312
A9: 800093816 | B9: TRIBUNALES Y JUZGADOS | C9: 426 | D9: 0.1814046312
A10: 800099287 | B10: CORPORACIÓN AUTÓNOMA REGIONAL DEL MAGDALENA (CORPAMAG) | C10: 90 | D10: 0.1916025833
A11: 800112806 | B11: FONDO PASIVO SOCIAL DE FERROCARRILES NACIONALES DE COLOMBIA - SALUD | C11: 217 | D11: 0.1586441866
A12: 800112806 | B12: FONDO PASIVO SOCIAL DE FERROCARRILES NACIONALES DE COLOMBIA -PENSIONES | C12: 217 | D12: 0.1586441866
A13: 901179431 | B13: COMISIÓN PARA EL ESCLARECIMIENTO DE LA VERDAD, LA CONVIVENCIA Y LA NO REPETICIÓN EN LIQUIDACIÓN | E13: X
A14: 800128835 | B14: ARCHIVO GENERAL DE LA NACIÓN | C14: 108 | D14: 2
A15: 800130632 | B15: EJÉRCITO | C15: 124 | D15: 0.2688685541
A16: 800131648 | B16: FONDO ÚNICO DE TECNOLOGÍAS DE LA INFORMACIÓN Y LAS COMUNICACIONES | C16: 240 | D16: 2.596809785
A17: 800141397 | B17: POLICÍA NACIONAL - GESTIÓN GENERAL | C17: 125 | D17: 0.2920811698
A18: 830079479 | B18: COMPUTADORES PARA EDUCAR CPE | C18: 536 | E18: X
A19: 800150861 | B19: INSTITUTO NACIONAL DE MEDICINA LEGAL Y CIENCIAS FORENSES | C19: 233 | D19: 3.034771654
A20: 800152783 | B20: FISCALÍA GENERAL DE LA NACIÓN - GESTIÓN GENERAL | C20: 232 | D20: 0.1822277427
A21: 901144049 | B21: CORPORACIÓN AGENCIA NACIONAL DE GOBIERNO DIGITAL - AND | E21: X
A22: 800170433 | B22: SUPERINTENDENCIA DE PUERTOS Y TRANSPORTE | C22: 248 | D22: 0.03471138145
A23: 800173719 | B23: INSTITUTO TOLIMENSE DE FORMACIÓN TÉCNICA PROFESIONAL | C23: 146 | D23: 2
A24: 800176089 | B24: SUPERINTENDENCIA DE INDUSTRIA Y COMERCIO | C24: 170 | D24: 0.04195428673
A25: 800185929 | B25: DIRECCIÓN NACIONAL DEL DERECHO DE AUTOR | C25: 172 | D25: 2
A26: 800186061 | B26: DEFENSORÍA DEL PUEBLO | C26: 200 | D26: 0.184600888
A27: 800197268 | B27: UNIDAD ADMINISTRATIVA ESPECIAL DIRECCIÓN DE IMPUESTOS Y ADUANAS NACIONALES -DIAN | C27: 1584 | D27: 0.3394899441
A28: 800215546 | B28: INSTITUTO NACIONAL PENITENCIARIO Y CARCELARIO - INPEC | C28: 174 | D28: 2.100532272
A29: 800215807 | B29: INSTITUTO NACIONAL DE VÍAS | C29: 246 | D29: 0.1542667733
A30: 800217123 | B30: SUPERINTENDENCIA DE VIGILANCIA Y SEGURIDAD PRIVADA | C30: 128 | D30: 0.1624682356
A31: 901352963 | B31: DIRECCIÓN DE SUSTITUCIÓN DE CULTIVOS USO ILÍCITO | E31: X
A32: 800230729 | B32: COMANDO GENERAL | C32: 124 | D32: 0.2688685541
A33: 800237214 | B33: CORPORACIÓN NACIONAL PARA LA RECONSTRUCCIÓN DE LA CUENCA DEL RIO PÁEZ Y ZONAS ALEDAÑAS NASA KI WE | C33: 176 | D33: 2
A34: 800248004 | B34: INSTITUTO TÉCNICO NACIONAL DE COMERCIO "SIMÓN RODRÍGUEZ" DE CALI | C34: 142 | D34: 2
A35: 800250984 | B35: SUPERINTENDENCIA DE SERVICIOS PÚBLICOS DOMICILIARIOS | C35: 209 | D35: 0.5095829466
A36: 800252037 | B36: CORPORACIÓN AUTÓNOMA REGIONAL DE CHIVOR (CORPOCHIVOR) | C36: 77 | D36: 1.89922048
A37: 800252683 | B37: FONDO DE BIENESTAR SOCIAL DE LA CONTRALORÍA GENERAL DE LA REPÚBLICA | C37: 201 | D37: 2.510609543
A38: 800252843 | B38: CORPORACIÓN AUTÓNOMA REGIONAL DE BOYACÁ (CORPOBOYACÁ) | C38: 75 | D38: 0.8522933568
A39: 800252844 | B39: CORPORACIÓN PARA EL DESARROLLO SOSTENIBLE DEL SUR DE LA AMAZONIA (CORPOAMAZONIA) | C39: 107 | D39: 1.145811059
A40: 800254453 | B40: CORPORACIÓN AUTÓNOMA REGIONAL DEL CANAL DEL DIQUE (CARDIQUE) | C40: 83 | D40: 0.3655646374
A41: 800255580 | B41: CORPORACIÓN AUTÓNOMA REGIONAL DEL ALTO MAGDALENA (CAM) | C41: 86 | D41: 0.5017976127
A42: 802000339 | B42: CORPORACIÓN AUTÓNOMA REGIONAL DEL ATLÁNTICO (CRA) | C42: 284 | D42: 2.641140773
A43: 804000292 | B43: CORPORACIÓN AUTÓNOMA REGIONAL DE SANTANDER (CAS) | C43: 102 | D43: 3.028031244
A44: 806000327 | B44: CORPORACIÓN AUTÓNOMA REGIONAL DEL SUR DE BOLÍVAR (CSB) | C44: 289 | D44: 2.260925958
A45: 811000231 | B45: CORPORACIÓN AUTÓNOMA REGIONAL DEL CENTRO DE ANTIOQUIA (CORANTIOQUIA) | C45: 103 | D45: 0.2358667808
A46: 822000091 | B46: CORPORACIÓN PARA EL DESARROLLO SOSTENIBLE DEL ÁREA DE MANEJO ESPECIAL LA MACARENA (CORMACARENA) | C46: 96 | D46: 1.439772637
A47: 823000050 | B47: CORPORACIÓN AUTÓNOMA REGIONAL DE SUCRE (CARSUCRE) | C47: 92 | D47: 3.135225202
A48: 823000077 | B48: CORPORACIÓN PARA EL DESARROLLO SOSTENIBLE DE LA MOJANA Y EL SAN JORGE (CORPOMOJANA) | C48: 97 | D48: 2.139947011
A49: 827000031 | B49: CORPORACIÓN PARA EL DESARROLLO SOSTENIBLE DEL ARCHIPIÉLAGO DE SAN ANDRES, PROVIDENCIA Y SANTA CATALINA (CORALINA) | C49: 95 | D49: 2.344631806
A50: 829000127 | B50: CORPORACION AUTONOMA REGIONAL DEL RIO GRANDE DEL MAGDALENA | C50: 91 | D50: 1.792038856
A51: 830000167 | B51: INSTITUTO NACIONAL DE VIGILANCIA DE MEDICAMENTOS Y ALIMENTOS - INVIMA | C51: 223 | D51: 0.3154882978
A52: 830000212 | B52: COMISIÓN DE REGULACIÓN DE AGUA POTABLE Y SANEAMIENTO BÁSICO CRA | C52: 65 | D52: 2.565896826
A53: 830000282 | B53: UNIDAD DE PLANEACION MINERO ENERGÉTICA - UPME | C53: 195 | D53: 0.5173971234
A54: 830000602 | B54: INSTITUTO DE HIDROLOGÍA, METEOROLOGÍA Y ESTUDIOS AMBIENTALES- IDEAM | C54: 64 | D54: 2.965815903
A55: 830002593 | B55: UNIDAD ADMINISTRATIVA ESPECIAL COMISIÓN DE REGULACIÓN DE COMUNICACIONES | C55: 239 | D55: 1.583863586
A56: 830016624 | B56: PARQUES NACIONALES NATURALES DE COLOMBIA | C56: 74 | D56: 0.6622558523
A57: 901148337 | B57: FONDO ESPECIAL PARA LA ADMINISTRACIÓN DE BIENES DE LA FISCALÍA GENERAL DE LA NACIÓN | E57: X
A58: 830025406 | B58: UNIDAD ADMINISTRATIVA ESPECIAL CONTADURÍA GENERAL DE LA NACIÓN | C58: 323 | D58: 2
A59: 830027904 | B59: DIRECCIÓN GENERAL MARÍTIMA (DIMAR) | C59: 124 | D59: 0.2688685541
A60: 830034348 | B60: MINISTERIO DE CULTURA - GESTIÓN GENERAL | C60: 112 | D60: 1.007755035
A61: 830040256 | B61: HOSPITAL MILITAR | C61: 122 | D61: 0.4598989409
A62: 830041314 | B62: POLICÍA NACIONAL - SALUD | C62: 3007 | D62: 2.353834604
A63: 830053043 | B63: SUPERINTENDENCIA DE LA ECONOMÍA SOLIDARIA | C63: 130 | D63: 0.6188248005
A64: 830065741 | B64: AUDITORÍA GENERAL DE LA REPÚBLICA - GESTIÓN GENERAL | C64: 197 | D64: 2
A65: 830067892 | B65: INSTITUTO COLOMBIANO DE ANTROPOLOGÍA E HISTORIA | C65: 110 | D65: 2
A66: 830068074 | B66: UNIDAD DE INFORMACIÓN Y ANÁLISIS FINANCIERO | C66: 161 | D66: 2
A67: 830025267 | B67: FONDO NACIONAL AMBIENTAL - GESTIÓN GENERAL | E67: X
A68: 830085129 | B68: FONDO SOCIAL DE VIVIENDA DE LA REGISTRADURÍA NACIONAL DEL ESTADO CIVIL | C68: 448 | D68: 2
A69: 830114475 | B69: MINISTERIO DEL INTERIOR - GESTIÓN GENERAL | C69: 407 | D69: 0.2418577674
A70: 830114475 | B70: DIRECCIÓN DE LA AUTORIDAD NACIONAL DE CONSULTA PREVIA | C70: 407 | D70: 0.2418577674
A71: 830115226 | B71: MINISTERIO DEL TRABAJO - GESTIÓN GENERAL | C71: 403 | D71: 0.4291928691
A72: 830115297 | B72: MINISTERIO DE COMERCIO INDUSTRIA TURISMO - GESTIÓN GENERAL | C72: 169 | D72: 0.4948217977
A73: 830115297 | B73: DIRECCIÓN GENERAL DE COMERCIO EXTERIOR | C73: 169 | D73: 0.4948217977
A74: 830115395 | B74: MINISTERIO DE AMBIENTE Y DESARROLLO SOSTENIBLE - GESTIÓN GENERAL | C74: 386 | D74: 0.1125473119
A75: 830121208 | B75: FONDO NACIONAL DE VIVIENDA - FONVIVIENDA | C75: 307 | D75: 1.30504293
A76: 830125996 | B76: AGENCIA NACIONAL DE INFRAESTRUCTURA | C76: 245 | D76: 0.03426020236
A77: 830127607 | B77: AGENCIA NACIONAL DE HIDROCARBUROS - ANH | C77: 179 | D77: 2.423050876
A78: 832000171 | B78: CORPORACIÓN AUTÓNOMA REGIONAL DEL GUAVIO (CORPOGUAVIO) | C78: 89 | D78: 1.96308989
A79: 832000283 | B79: CORPORACIÓN AUTÓNOMA REGIONAL DE LA ORINOQUIA (CORPORINOQUIA) | C79: 81 | D79: 0.6069408026
A80: 860016627 | B80: INSTITUTO NACIONAL PARA SORDOS (INSOR) | E80: X
A81: 838000009 | B81: CORPORACIÓN PARA EL DESARROLLO SOSTENIBLE DEL NORTE Y ORIENTE DE LA AMAZONIA (CDA) | C81: 104 | D81: 2.556000636
A82: 901733502 | B82: MINISTERIO DE IGUALDAD Y EQUIDAD | C82: 3091 | E82: X
A83: 860015971 | B83: INSTITUTO NACIONAL PARA CIEGOS (INCI) | C83: 138 | D83: 2
A84: 8300157281 | B84: MINISTERIO PUBLICO - INSTITUTO DE ESTUDIOS DEL MINISTERIO PUBLICO | E84: X
A85: 860016951 | B85: CLUB MILITAR DE OFICIALES | C85: 117 | D85: 2
A86: 860020227 | B86: FONDO ROTATORIO DE LA POLICÍA - GESTIÓN GENERAL | C86: 121 | D86: 2.889289717
A87: 860041247 | B87: INSTITUTO CASAS FISCALES DEL EJÉRCITO | C87: 123 | D87: 2.17283295
A88: 860062187 | B88: SUPERINTENDENCIA NACIONAL DE SALUD | C88: 229 | D88: 0.4576584021
A89: 860402193 | B89: INSTITUTO NACIONAL DE FORMACIÓN TÉCNICA PROFESIONAL DE SAN JUAN DEL CESAR | C89: 141 | D89: 2
A90: 860503600 | B90: SUPERINTENDENCIA DE SUBSIDIO FAMILIAR | C90: 228 | D90: 1.60934632
A91: 860511071 | B91: FONDO ROTATORIO DEL MINISTERIO DE RELACIONES EXTERIORES | C91: 236 | D91: 2
A92: 900528648 | B92: UNIDAD ADMINISTRATIVA ESPECIAL AGENCIA DEL INSPECTOR GENERAL DE TRIBUTOS, RENTAS Y CONTRIBUCIONES PARAFISCALES (ITRC) | C92: 534 | E92: X
A93: 860523694 | B93: ESCUELA TECNOLÓGICA INSTITUTO TÉCNICO CENTRAL | C93: 145 | D93: 2
A94: 901377527 | B94: UNIDAD ADMINISTRATIVA ESPECIAL ALIMENTACIÓN ESCOLAR | E94: X
A95: 890000447 | B95: CORPORACIÓN AUTÓNOMA REGIONAL DEL QUINDÍO (CRQ) | C95: 98 | D95: 0.2060412269
A96: 900678508 | B96: UNIDAD ADMINISTRATIVA ESPECIAL DEL SERVICIO PÚBLICO DE EMPLEO | E96: X
A97: 901525615 | B97: UNIDAD DE PLANEACIÓN DEL SECTOR DE INFRAESTRUCTURA DE TRANSPORTE | E97: X
A98: 890201573 | B98: CORPORACIÓN AUTÓNOMA REGIONAL PARA LA DEFENSA DE LA MESETA DE BUCARAMANGA (CDMB) | C98: 94 | D98: 0.5778614434
A99: 800144829 | B99: UNIVERSIDADES PÚBLICAS - UNIVERSIDAD COLEGIO MAYOR DE CUNDINAMARCA
A100: 890980040 | B100: UNIVERSIDADES PÚBLICAS - UNIVERSIDAD DE ANTIOQUIA
A101: 890801063 | B101: UNIVERSIDADES PÚBLICAS - UNIVERSIDAD DE CALDAS
A102: 890480123 | B102: UNIVERSIDADES PÚBLICAS - UNIVERSIDAD DE CARTAGENA
A103: 890505253 | B103: CORPORACIÓN AUTÓNOMA REGIONAL DE LA FRONTERA NORORIENTAL (CORPONOR) | C103: 79 | D103: 2.650280068
A104: 891080031 | B104: UNIVERSIDADES PÚBLICAS - UNIVERSIDAD DE CORDOBA
A105: 890680062 | B105: UNIVERSIDADES PÚBLICAS - UNIVERSIDAD DE CUNDINAMARCA
A106: 890704536 | B106: CORPORACIÓN AUTÓNOMA REGIONAL DEL TOLIMA (CORTOLIMA) | C106: 93 | D106: 1.194527594
A107: 891190346 | B107: UNIVERSIDADES PÚBLICAS - UNIVERSIDAD DE LA AMAZONIA
A108: 890803005 | B108: CORPORACIÓN AUTÓNOMA REGIONAL DE CALDAS (CORPOCALDAS) | C108: 76 | D108: 0.3599571752
A109: 890907748 | B109: CORPORACIÓN PARA EL DESARROLLO SOSTENIBLE DEL URABÁ (CORPOURABÁ) | C109: 99 | D109: 1.486394629
A110: 892115029 | B110: UNIVERSIDADES PÚBLICAS - UNIVERSIDAD DE LA GUAJIRA
A111: 890999057 | B111: SUPERINTENDENCIA FINANCIERA DE COLOMBIA | C111: 159 | D111: 0.008316268519
A112: 891000627 | B112: CORPORACIÓN AUTÓNOMA REGIONAL DE LOS VALLES DEL SINÚ Y SAN JORGE (CVS) | C112: 84 | D112: 0.7163185064
A113: 892000757 | B113: UNIVERSIDADES PÚBLICAS - UNIVERSIDAD DE LOS LLANOS
A114: 800118954 | B114: UNIVERSIDADES PÚBLICAS - UNIVERSIDAD DE NARIÑO
A115: 890501510 | B115: UNIVERSIDADES PÚBLICAS - UNIVERSIDAD DE PAMPLONA
A116: 891222322 | B116: CORPORACIÓN AUTÓNOMA REGIONAL DE NARIÑO (CORPONARIÑO) | C116: 85 | D116: 2.177505133
A117: 891410354 | B117: CORPORACIÓN AUTÓNOMA REGIONAL DE RISARALDA (CARDER) | C117: 101 | D117: 2.022694524
A118: 892200323 | B118: UNIVERSIDADES PÚBLICAS - UNIVERSIDAD DE SUCRE
A119: 890102257 | B119: UNIVERSIDADES PÚBLICAS - UNIVERSIDAD DEL ATLANTICO
A120: 891501885 | B120: CORPORACIÓN AUTÓNOMA REGIONAL DEL CAUCA (CRC) | C120: 87 | D120: 1.321687847
A121: 891500319 | B121: UNIVERSIDADES PÚBLICAS - UNIVERSIDAD DEL CAUCA
A122: 891780111 | B122: UNIVERSIDADES PÚBLICAS - UNIVERSIDAD DEL MAGDALENA
A123: 835000300 | B123: UNIVERSIDADES PÚBLICAS - UNIVERSIDAD DEL PACIFICO
A124: 890000432 | B124: UNIVERSIDADES PÚBLICAS - UNIVERSIDAD DEL QUINDIO
A125: 890700640 | B125: UNIVERSIDADES PÚBLICAS - UNIVERSIDAD DEL TOLIMA
A126: 892115314 | B126: CORPORACIÓN AUTÓNOMA REGIONAL DE LA GUAJIRA (CORPOGUAJIRA) | C126: 80 | D126: 2.561407885
A127: 890399010 | B127: UNIVERSIDADES PÚBLICAS - UNIVERSIDAD DEL VALLE
A128: 899999230 | B128: UNIVERSIDADES PÚBLICAS - UNIVERSIDAD DISTRITAL FRANCISCO JOSE DE CALDAS
A129: 892301483 | B129: CORPORACIÓN AUTÓNOMA REGIONAL DEL CESAR (CORPOCESAR) | C129: 288 | D129: 1.423852628
A130: 892400461 | B130: INSTITUTO NACIONAL DE FORMACIÓN TÉCNICA PROFESIONAL DE SAN ANDRES Y PROVIDENCIA | C130: 137 | D130: 2
A131: 899999001 | B131: MINISTERIO DE EDUCACIÓN NACIONAL - GESTIÓN GENERAL | C131: 3042 | D131: 0.07320715687
A132: 899999003 | B132: MINISTERIO DE DEFENSA NACIONAL - GESTIÓN GENERAL | C132: 124 | D132: 0.2688685541
A133: 899999003 | B133: MINISTERIO DE DEFENSA NACIONAL - SALUD | C133: 124 | D133: 0.2688685541
A134: 899999004 | B134: INSTITUTO GEOGRÁFICO AGUSTÍN CODAZZI - IGAC | C134: 149 | D134: 0.8167505418
A135: 899999007 | B135: SUPERINTENDENCIA DE NOTARIADO Y REGISTRO | C135: 175 | D135: 0.1308794479
A136: 899999011 | B136: DEPARTAMENTO ADMINISTRATIVO NACIONAL DE PLANEACIÓN - GESTIÓN GENERAL | C136: 205 | D136: 1.019944763
A137: 899999020 | B137: DEPARTAMENTO ADMINISTRATIVO DE LA FUNCIÓN PÚBLICA- GESTIÓN GENERAL | C137: 150 | D137: 1.179873014
A138: 899999022 | B138: MINISTERIO DE MINAS Y ENERGÍA - GESTIÓN GENERAL | C138: 196 | D138: 0.001706067477
A139: 899999027 | B139: DEPARTAMENTO ADMINISTRATIVO NACIONAL DE ESTADÍSTICA (DANE) - GESTIÓN GENERAL | C139: 148 | D139: 3.375530012
A140: 899999028 | B140: MINISTERIO DE AGRICULTURA Y DESARROLLO RURAL - GESTIÓN GENERAL | C140: 63 | D140: 1.091160126
A141: 899999034 | B141: SERVICIO NACIONAL DE APRENDIZAJE (SENA) | C141: 227 | D141: 0.4149080864
A142: 899999040 | B142: REGISTRADURÍA NACIONAL DEL ESTADO CIVIL - GESTIÓN GENERAL | C142: 203 | D142: 0.5648040492
A143: 899999042 | B143: MINISTERIO DE RELACIONES EXTERIORES - GESTIÓN GENERAL | C143: 237 | D143: 1.595313891
A144: 899999048 | B144: INSTITUTO DE PLANIFICACIÓN Y PROMOCIÓN DE SOLUCIONES ENERGÉTICAS PARA LAS ZONAS NO INTERCONECTADAS - IPSE | C144: 193 | D144: 1.52171548
A145: 899999050 | B145: UNIDAD ADMINISTRATIVA ESPECIAL DE ORGANIZACIONES SOLIDARIAS | C145: 404 | D145: 2
A146: 899999053 | B146: MINISTERIO DE TECNOLOGÍAS DE LA INFORMACIÓN Y LAS COMUNICACIONES - GESTIÓN GENERAL | C146: 242 | D146: 0.8979476403
A147: 899999054 | B147: ESCUELA SUPERIOR DE ADMINISTRACIÓN PÚBLICA (ESAP) | C147: 151 | D147: 2.053908619
A148: 899999055 | B148: MINISTERIO DE TRANSPORTE - GESTIÓN GENERAL | C148: 247 | D148: 0.3490898321
A149: 899999055 | B149: COMISIÓN DE REGULACIÓN DE INFRAESTRUCTURA Y TRANSPORTE | C149: 247 | D149: 0.3490898321
A150: 899999059 | B150: UNIDAD ADMINISTRATIVA ESPECIAL DE LA AERONÁUTICA CIVIL | C150: 249 | D150: 0.7921413182
A151: 890500622 | B151: UNIVERSIDADES PÚBLICAS - UNIVERSIDAD FRANCISCO DE PAULA SANTANDER
A152: 899999067 | B152: CONTRALORÍA GENERAL DE LA REPÚBLICA - GESTIÓN GENERAL | C152: 199 | D152: 0.07703982139
A153: 899999069 | B153: INSTITUTO COLOMBIANO AGROPECUARIO (ICA) | C153: 57 | D153: 1.331883815
A154: 899999073 | B154: CAJA DE SUELDOS DE RETIRO DE LA POLICÍA NACIONAL | C154: 115 | D154: 2.081090828
A155: 899999083 | B155: PRESIDENCIA DE LA REPÚBLICA - GESTIÓN GENERAL | C155: 210 | D155: 0.6147495227
A156: 899999086 | B156: SUPERINTENDENCIA DE SOCIEDADES | C156: 171 | D156: 0.03459037143
A157: 899999090 | B157: MINISTERIO DE HACIENDA Y CRÉDITO PÚBLICO - GESTIÓN GENERAL | C157: 348 | D157: 0.1877722611
A158: 899999090 | B158: SERVICIO DE LA DEUDA PÚBLICA NACIONAL | C158: 348 | D158: 0.1877722611
A159: 899999096 | B159: INSTITUTO CARO Y CUERVO | C159: 109 | D159: 2
A160: 899999098 | B160: CÁMARA DE REPRESENTANTES | C160: 235 | D160: 2.148700763
A161: 899999102 | B161: FUERZA AÉREA | C161: 124 | D161: 0.2688685541
A162: 899999103 | B162: SENADO DE LA REPÚBLICA | C162: 234 | D162: 0.04253789804
A163: 899999118 | B163: CAJA DE RETIRO DE LAS FUERZAS MILITARES | C163: 114 | D163: 0.9451369059
A164: 899999119 | B164: PROCURADURÍA GENERAL DE LA NACIÓN - GESTIÓN GENERAL | C164: 202 | D164: 0.2394570359
A165: 800163130 | B165: UNIVERSIDADES PÚBLICAS - UNIVERSIDAD FRANCISCO DE PAULA SANTANDER SECCIONAL OCAÑA
A166: 899999162 | B166: AGENCIA LOGÍSTICA DE LAS FUERZAS MILITARES | C166: 113 | D166: 0.2192091069
A167: 890201213 | B167: UNIVERSIDADES PÚBLICAS - UNIVERSIDAD INDUSTRIAL DE SANTANDER
A168: 899999238 | B168: CORPORACIÓN AUTÓNOMA REGIONAL PARA EL DESARROLLO SOSTENIBLE DEL CHOCO (CODECHOCO) | C168: 106 | D168: 1.825043764
A169: 899999239 | B169: INSTITUTO COLOMBIANO DE BIENESTAR FAMILIAR (ICBF) | C169: 219 | D169: 0.0003080518777
A170: 899999294 | B170: SERVICIO GEOLÓGICO COLOMBIANO | C170: 192 | D170: 1.711790723
A171: 899999296 | B171: MINISTERIO DE CIENCIA, TECNOLOGÍA E INNOVACIÓN - GESTIÓN GENERAL | C171: 297 | D171: 2.211511963
A172: 899999306 | B172: MINISTERIO DEL DEPORTE - GESTIÓN GENERAL | C172: 111 | D172: 0.7249069913
A173: 899999327 | B173: UNIDAD ADMINISTRATIVA ESPECIAL FONDO NACIONAL DE ESTUPEFACIENTES | C173: 315 | D173: 2
A174: 899999403 | B174: INSTITUTO NACIONAL DE SALUD (INS) | C174: 222 | D174: 2.616639578
A175: 899999717 | B175: DEFENSA CIVIL COLOMBIANA, GUILLERMO LEÓN VALENCIA | C175: 120 | D175: 2.872231308
A176: 899999734 | B176: FONDO DE PREVISIÓN SOCIAL DEL CONGRESO - CESANTÍAS Y VIVIENDA | C176: 218 | D176: 1.458866222
A177: 899999734 | B177: FONDO DE PREVISIÓN SOCIAL DEL CONGRESO - PENSIONES | C177: 218 | D177: 1.458866222
A178: 899999737 | B178: FONDO ROTATORIO DE LA REGISTRADURÍA | C178: 317 | D178: 2
A179: 900003409 | B179: COMISIÓN NACIONAL DEL SERVICIO CIVIL | C179: 204 | D179: 1.001158037
A180: 900034993 | B180: COMISIÓN DE REGULACIÓN DE ENERGÍA Y GAS (CREG) | C180: 185 | D180: 0.2564340051
A181: 900039527 | B181: ARMADA | C181: 124 | D181: 0.2688685541
A182: 900039533 | B182: DEPARTAMENTO ADMINISTRATIVO PARA LA PROSPERIDAD SOCIAL - GESTIÓN GENERAL | C182: 394 | D182: 0.6706900424
A183: 900180739 | B183: UNIDAD ADMINISTRATIVA ESPECIAL JUNTA CENTRAL CONTADORES | C183: 445 | D183: 2.550757933
A184: 900334265 | B184: AGENCIA NACIONAL DEL ESPECTRO - ANE | C184: 390 | D184: 2
A185: 900373379 | B185: POLICÍA NACIONAL - EDUCACIÓN | C185: 3007 | D185: 2.353834604
A186: 900373913 | B186: UNIDAD ADMINISTRATIVA ESPECIAL DE GESTIÓN PENSIONAL Y CONTRIBUCIONES PARAFISCALES DE LA PROTECCIÓN SOCIAL (UGPPP) - GESTIÓN GENERAL | C186: 433 | D186: 0.2816959149
A187: 900384997 | B187: UNIDAD ADMINISTRATIVA ESPECIAL DE LA JUSTICIA PENAL MILITAR Y POLICIAL | C187: 3041 | D187: 0.06897040599
A188: 900450205 | B188: FONDO ADAPTACIÓN | C188: 438 | D188: 1.681005415
A189: 900457461 | B189: MINISTERIO DE JUSTICIA Y DEL DERECHO - GESTIÓN GENERAL | C189: 415 | D189: 0.1712652135
A190: 900463725 | B190: MINISTERIO DE VIVIENDA, CIUDAD Y TERRITORIO - GESTIÓN GENERAL | C190: 389 | D190: 0.0247244982
A191: 900467239 | B191: AUTORIDAD NACIONAL DE LICENCIAS AMBIENTALES ANLA | C191: 387 | D191: 0.3493530061
A192: 900474727 | B192: MINISTERIO DE SALUD Y PROTECCIÓN SOCIAL - GESTIÓN GENERAL | C192: 401 | D192: 0.1589387156
A193: 900475460 | B193: DEPARTAMENTO ADMINISTRATIVO DIRECCIÓN NACIONAL DE INTELIGENCIA - GESTIÓN GENERAL | C193: 424 | D193: 2.00644895
A194: 900475780 | B194: UNIDAD NACIONAL DE PROTECCIÓN - UNP | C194: 408 | D194: 0.6436804888
A195: 900477169 | B195: AGENCIA PARA LA REINCORPORACIÓN Y LA NORMALIZACIÓN - ARN | C195: 421 | D195: 1.325489779
A196: 900477235 | B196: UNIDAD ADMINISTRATIVA ESPECIAL MIGRACIÓN COLOMBIA | C196: 409 | D196: 1.386503294
A197: 900478966 | B197: UNIDAD NACIONAL PARA LA GESTIÓN DEL RIESGO DE DESASTRES | C197: 419 | D197: 0.7847899214
A198: 900479658 | B198: UNIDAD DE PLANIFICACIÓN DE TIERRAS RURALES, ADECUACIÓN DE TIERRAS Y USOS AGROPECUARIOS (UPRA) | C198: 383 | D198: 2
A199: 900479669 | B199: AUTORIDAD NACIONAL DE ACUICULTURA Y PESCA - AUNAP | C199: 384 | D199: 2.539075534
A200: 900483991 | B200: AGENCIA NACIONAL INMOBILIARIA VIRGILIO BARCO VARGAS | C200: 418 | D200: 2
... 29 more rows

Sheet Apropiaciones (hidden)
A1: NIT | B1: Entidad | C1: Apropiaciones 2025 | G1: Se debe validar cual es
A2: 900948958 | B2: AGENCIA DE DESARROLLO RURAL - ADR | G2: Se debe validar si está en ekogui
A3: 901006886 | B3: AGENCIA DE RENOVACIÓN DEL TERRITORIO – ART - GESTIÓN GENERAL | G3: No presentan novedad
A4: 899999162 | B4: AGENCIA LOGÍSTICA DE LAS FUERZAS MILITARES
A5: 830127607 | B5: AGENCIA NACIONAL DE HIDROCARBUROS - ANH
A6: 830125996 | B6: AGENCIA NACIONAL DE INFRAESTRUCTURA
A7: 900500018 | B7: AGENCIA NACIONAL DE MINERÍA - ANM
A8: 900852998 | B8: AGENCIA NACIONAL DE SEGURIDAD VIAL
A9: 900948953 | B9: AGENCIA NACIONAL DE TIERRAS - ANT
A10: 900334265 | B10: AGENCIA NACIONAL DEL ESPECTRO - ANE
A11: 900483991 | B11: AGENCIA NACIONAL INMOBILIARIA VIRGILIO BARCO VARGAS
A12: 900477169 | B12: AGENCIA PARA LA REINCORPORACIÓN Y LA NORMALIZACIÓN - ARN
A13: 900484852 | B13: AGENCIA PRESIDENCIAL DE COOPERACIÓN INTERNACIONAL DE COLOMBIA, APC - COLOMBIA
A14: 800128835 | B14: ARCHIVO GENERAL DE LA NACIÓN
A15: 900039527 | B15: ARMADA
A16: 830065741 | B16: AUDITORÍA GENERAL DE LA REPÚBLICA - GESTIÓN GENERAL
A17: 900479669 | B17: AUTORIDAD NACIONAL DE ACUICULTURA Y PESCA - AUNAP
A18: 900467239 | B18: AUTORIDAD NACIONAL DE LICENCIAS AMBIENTALES ANLA
A19: 899999118 | B19: CAJA DE RETIRO DE LAS FUERZAS MILITARES
A20: 899999073 | B20: CAJA DE SUELDOS DE RETIRO DE LA POLICÍA NACIONAL
A21: 899999098 | B21: CÁMARA DE REPRESENTANTES
A22: 900492141 | B22: CENTRO DE MEMORIA HISTÓRICA
A23: 860016951 | B23: CLUB MILITAR DE OFICIALES
A24: 800230729 | B24: COMANDO GENERAL
A25: 830000212 | B25: COMISIÓN DE REGULACIÓN DE AGUA POTABLE Y SANEAMIENTO BÁSICO CRA
A26: 900034993 | B26: COMISIÓN DE REGULACIÓN DE ENERGÍA Y GAS (CREG)
A27: 899999055 | B27: COMISIÓN DE REGULACIÓN DE INFRAESTRUCTURA Y TRANSPORTE
A28: 800093816 | B28: COMISIÓN NACIONAL DE DISCIPLINA JUDICIAL
A29: 900003409 | B29: COMISIÓN NACIONAL DEL SERVICIO CIVIL
A30: 901179431 | B30: COMISIÓN PARA EL ESCLARECIMIENTO DE LA VERDAD, LA CONVIVENCIA Y LA NO REPETICIÓN EN LIQUIDACIÓN
A31: 830079479 | B31: COMPUTADORES PARA EDUCAR CPE
A32: 800093816 | B32: CONSEJO DE ESTADO
A33: 901717412 | B33: CONSEJO NACIONAL ELECTORAL
A34: 800093816 | B34: CONSEJO SUPERIOR DE LA JUDICATURA
A35: 899999067 | B35: CONTRALORÍA GENERAL DE LA REPÚBLICA - GESTIÓN GENERAL
A36: 823000077 | B36: CORPORACIÓN PARA EL DESARROLLO SOSTENIBLE DE LA MOJANA Y EL SAN JORGE (CORPOMOJANA)
A37: 838000009 | B37: CORPORACIÓN PARA EL DESARROLLO SOSTENIBLE DEL NORTE Y ORIENTE DE LA AMAZONIA (CDA)
A38: 901144049 | B38: CORPORACIÓN AGENCIA NACIONAL DE GOBIERNO DIGITAL - AND
A39: 800252843 | B39: CORPORACIÓN AUTÓNOMA REGIONAL DE BOYACÁ (CORPOBOYACÁ)
A40: 890803005 | B40: CORPORACIÓN AUTÓNOMA REGIONAL DE CALDAS (CORPOCALDAS)
A41: 800252037 | B41: CORPORACIÓN AUTÓNOMA REGIONAL DE CHIVOR (CORPOCHIVOR)
A42: 892115314 | B42: CORPORACIÓN AUTÓNOMA REGIONAL DE LA GUAJIRA (CORPOGUAJIRA)
A43: 890505253 | B43: CORPORACIÓN AUTÓNOMA REGIONAL DE LA FRONTERA NORORIENTAL (CORPONOR)
A44: 832000283 | B44: CORPORACIÓN AUTÓNOMA REGIONAL DE LA ORINOQUIA (CORPORINOQUIA)
A45: 891000627 | B45: CORPORACIÓN AUTÓNOMA REGIONAL DE LOS VALLES DEL SINÚ Y SAN JORGE (CVS)
A46: 891222322 | B46: CORPORACIÓN AUTÓNOMA REGIONAL DE NARIÑO (CORPONARIÑO)
A47: 891410354 | B47: CORPORACIÓN AUTÓNOMA REGIONAL DE RISARALDA (CARDER)
A48: 804000292 | B48: CORPORACIÓN AUTÓNOMA REGIONAL DE SANTANDER (CAS)
A49: 823000050 | B49: CORPORACIÓN AUTÓNOMA REGIONAL DE SUCRE (CARSUCRE)
A50: 800255580 | B50: CORPORACIÓN AUTÓNOMA REGIONAL DEL ALTO MAGDALENA (CAM)
A51: 802000339 | B51: CORPORACIÓN AUTÓNOMA REGIONAL DEL ATLÁNTICO (CRA)
A52: 800254453 | B52: CORPORACIÓN AUTÓNOMA REGIONAL DEL CANAL DEL DIQUE (CARDIQUE)
A53: 891501885 | B53: CORPORACIÓN AUTÓNOMA REGIONAL DEL CAUCA (CRC)
A54: 811000231 | B54: CORPORACIÓN AUTÓNOMA REGIONAL DEL CENTRO DE ANTIOQUIA (CORANTIOQUIA)
A55: 892301483 | B55: CORPORACIÓN AUTÓNOMA REGIONAL DEL CESAR (CORPOCESAR)
A56: 832000171 | B56: CORPORACIÓN AUTÓNOMA REGIONAL DEL GUAVIO (CORPOGUAVIO)
A57: 800099287 | B57: CORPORACIÓN AUTÓNOMA REGIONAL DEL MAGDALENA (CORPAMAG)
A58: 890000447 | B58: CORPORACIÓN AUTÓNOMA REGIONAL DEL QUINDÍO (CRQ)
A59: 806000327 | B59: CORPORACIÓN AUTÓNOMA REGIONAL DEL SUR DE BOLÍVAR (CSB)
A60: 890704536 | B60: CORPORACIÓN AUTÓNOMA REGIONAL DEL TOLIMA (CORTOLIMA)
A61: 899999238 | B61: CORPORACIÓN AUTÓNOMA REGIONAL PARA EL DESARROLLO SOSTENIBLE DEL CHOCO (CODECHOCO)
A62: 890201573 | B62: CORPORACIÓN AUTÓNOMA REGIONAL PARA LA DEFENSA DE LA MESETA DE BUCARAMANGA (CDMB)
A63: 800237214 | B63: CORPORACIÓN NACIONAL PARA LA RECONSTRUCCIÓN DE LA CUENCA DEL RIO PÁEZ Y ZONAS ALEDAÑAS NASA KI WE
A64: 827000031 | B64: CORPORACIÓN PARA EL DESARROLLO SOSTENIBLE DEL ARCHIPIÉLAGO DE SAN ANDRES, PROVIDENCIA Y SANTA CATALINA (CORALINA)
A65: 822000091 | B65: CORPORACIÓN PARA EL DESARROLLO SOSTENIBLE DEL ÁREA DE MANEJO ESPECIAL LA MACARENA (CORMACARENA)
A66: 800252844 | B66: CORPORACIÓN PARA EL DESARROLLO SOSTENIBLE DEL SUR DE LA AMAZONIA (CORPOAMAZONIA)
A67: 890907748 | B67: CORPORACIÓN PARA EL DESARROLLO SOSTENIBLE DEL URABÁ (CORPOURABÁ)
A68: 800093816 | B68: CORTE CONSTITUCIONAL
A69: 800093816 | B69: CORTE SUPREMA DE JUSTICIA
A70: 899999717 | B70: DEFENSA CIVIL COLOMBIANA, GUILLERMO LEÓN VALENCIA
A71: 800186061 | B71: DEFENSORÍA DEL PUEBLO
A72: 899999020 | B72: DEPARTAMENTO ADMINISTRATIVO DE LA FUNCIÓN PÚBLICA- GESTIÓN GENERAL
A73: 900475460 | B73: DEPARTAMENTO ADMINISTRATIVO DIRECCIÓN NACIONAL DE INTELIGENCIA - GESTIÓN GENERAL
A74: 899999027 | B74: DEPARTAMENTO ADMINISTRATIVO NACIONAL DE ESTADÍSTICA (DANE) - GESTIÓN GENERAL
A75: 899999011 | B75: DEPARTAMENTO ADMINISTRATIVO NACIONAL DE PLANEACIÓN - GESTIÓN GENERAL
A76: 900039533 | B76: DEPARTAMENTO ADMINISTRATIVO PARA LA PROSPERIDAD SOCIAL - GESTIÓN GENERAL
A77: 830114475 | B77: DIRECCIÓN DE LA AUTORIDAD NACIONAL DE CONSULTA PREVIA
A78: 901352963 | B78: DIRECCIÓN DE SUSTITUCIÓN DE CULTIVOS USO ILÍCITO
A79: 900894833 | B79: DIRECCIÓN DE VETERANOS Y REHABILITACIÓN INCLUSIVA
A80: 830115297 | B80: DIRECCIÓN GENERAL DE COMERCIO EXTERIOR
A81: 830027904 | B81: DIRECCIÓN GENERAL MARÍTIMA (DIMAR)
A82: 900639630 | B82: DIRECCIÓN NACIONAL DE BOMBEROS
A83: 800185929 | B83: DIRECCIÓN NACIONAL DEL DERECHO DE AUTOR
A84: 800130632 | B84: EJÉRCITO
A85: 899999054 | B85: ESCUELA SUPERIOR DE ADMINISTRACIÓN PÚBLICA (ESAP)
A86: 860523694 | B86: ESCUELA TECNOLÓGICA INSTITUTO TÉCNICO CENTRAL
A87: 800152783 | B87: FISCALÍA GENERAL DE LA NACIÓN - GESTIÓN GENERAL
A88: 900450205 | B88: FONDO ADAPTACIÓN
A89: 800252683 | B89: FONDO DE BIENESTAR SOCIAL DE LA CONTRALORÍA GENERAL DE LA REPÚBLICA
A90: 899999734 | B90: FONDO DE PREVISIÓN SOCIAL DEL CONGRESO - CESANTÍAS Y VIVIENDA
A91: 899999734 | B91: FONDO DE PREVISIÓN SOCIAL DEL CONGRESO - PENSIONES
A92: 901148337 | B92: FONDO ESPECIAL PARA LA ADMINISTRACIÓN DE BIENES DE LA FISCALÍA GENERAL DE LA NACIÓN
A93: 830025267 | B93: FONDO NACIONAL AMBIENTAL - GESTIÓN GENERAL
A94: 890026982 | B94: FONDO NACIONAL DE VIVIENDA - FONVIVIENDA
A95: 800112806 | B95: FONDO PASIVO SOCIAL DE FERROCARRILES NACIONALES DE COLOMBIA - SALUD
A96: 800112806 | B96: FONDO PASIVO SOCIAL DE FERROCARRILES NACIONALES DE COLOMBIA -PENSIONES
A97: 860020227 | B97: FONDO ROTATORIO DE LA POLICÍA - GESTIÓN GENERAL
A98: 899999737 | B98: FONDO ROTATORIO DE LA REGISTRADURÍA
A99: 800072977 | B99: FONDO ROTATORIO DEL DANE
A100: 860511071 | B100: FONDO ROTATORIO DEL MINISTERIO DE RELACIONES EXTERIORES
A101: 830085129 | B101: FONDO SOCIAL DE VIVIENDA DE LA REGISTRADURÍA NACIONAL DEL ESTADO CIVIL
A102: 800131648 | B102: FONDO ÚNICO DE TECNOLOGÍAS DE LA INFORMACIÓN Y LAS COMUNICACIONES
A103: 899999102 | B103: FUERZA AÉREA
A104: 830040256 | B104: HOSPITAL MILITAR
A105: 899999096 | B105: INSTITUTO CARO Y CUERVO
A106: 860041247 | B106: INSTITUTO CASAS FISCALES DEL EJÉRCITO
A107: 899999069 | B107: INSTITUTO COLOMBIANO AGROPECUARIO (ICA)
A108: 830067892 | B108: INSTITUTO COLOMBIANO DE ANTROPOLOGÍA E HISTORIA
A109: 800213389 | B109: INSTITUTO COLOMBIANO DE BIENESTAR FAMILIAR (ICBF)
A110: 830000602 | B110: INSTITUTO DE HIDROLOGÍA, METEOROLOGÍA Y ESTUDIOS AMBIENTALES- IDEAM
A111: 899999048 | B111: INSTITUTO DE PLANIFICACIÓN Y PROMOCIÓN DE SOLUCIONES ENERGÉTICAS PARA LAS ZONAS NO INTERCONECTADAS - IPSE
A112: 899999004 | B112: INSTITUTO GEOGRÁFICO AGUSTÍN CODAZZI - IGAC
A113: 892400461 | B113: INSTITUTO NACIONAL DE FORMACIÓN TÉCNICA PROFESIONAL DE SAN ANDRES Y PROVIDENCIA
A114: 860402193 | B114: INSTITUTO NACIONAL DE FORMACIÓN TÉCNICA PROFESIONAL DE SAN JUAN DEL CESAR
A115: 800150861 | B115: INSTITUTO NACIONAL DE MEDICINA LEGAL Y CIENCIAS FORENSES
A116: 900494393 | B116: INSTITUTO NACIONAL DE METROLOGÍA - INM
A117: 899999403 | B117: INSTITUTO NACIONAL DE SALUD (INS)
A118: 800215807 | B118: INSTITUTO NACIONAL DE VÍAS
A119: 830000167 | B119: INSTITUTO NACIONAL DE VIGILANCIA DE MEDICAMENTOS Y ALIMENTOS - INVIMA
A120: 860015971 | B120: INSTITUTO NACIONAL PARA CIEGOS (INCI)
A121: 860016627 | B121: INSTITUTO NACIONAL PARA SORDOS (INSOR)
A122: 800215546 | B122: INSTITUTO NACIONAL PENITENCIARIO Y CARCELARIO - INPEC
A123: 800248004 | B123: INSTITUTO TÉCNICO NACIONAL DE COMERCIO "SIMÓN RODRÍGUEZ" DE CALI
A124: 800173719 | B124: INSTITUTO TOLIMENSE DE FORMACIÓN TÉCNICA PROFESIONAL
A125: 901140004 | B125: JURISDICCIÓN ESPECIAL PARA LA PAZ - GESTIÓN GENERAL
A126: 899999028 | B126: MINISTERIO DE AGRICULTURA Y DESARROLLO RURAL - GESTIÓN GENERAL
A127: 830115395 | B127: MINISTERIO DE AMBIENTE Y DESARROLLO SOSTENIBLE - GESTIÓN GENERAL
A128: 899999296 | B128: MINISTERIO DE CIENCIA, TECNOLOGÍA E INNOVACIÓN - GESTIÓN GENERAL
A129: 830115297 | B129: MINISTERIO DE COMERCIO INDUSTRIA TURISMO - GESTIÓN GENERAL
A130: 830034348 | B130: MINISTERIO DE CULTURA - GESTIÓN GENERAL
A131: 899999003 | B131: MINISTERIO DE DEFENSA NACIONAL - GESTIÓN GENERAL
A132: 899999003 | B132: MINISTERIO DE DEFENSA NACIONAL - SALUD
A133: 899999090 | B133: MINISTERIO DE HACIENDA Y CRÉDITO PÚBLICO - GESTIÓN GENERAL
A134: 900457461 | B134: MINISTERIO DE JUSTICIA Y DEL DERECHO - GESTIÓN GENERAL
A135: 899999022 | B135: MINISTERIO DE MINAS Y ENERGÍA - GESTIÓN GENERAL
A136: 899999042 | B136: MINISTERIO DE RELACIONES EXTERIORES - GESTIÓN GENERAL
A137: 900474727 | B137: MINISTERIO DE SALUD Y PROTECCIÓN SOCIAL - GESTIÓN GENERAL
A138: 899999053 | B138: MINISTERIO DE TECNOLOGÍAS DE LA INFORMACIÓN Y LAS COMUNICACIONES - GESTIÓN GENERAL
A139: 899999055 | B139: MINISTERIO DE TRANSPORTE - GESTIÓN GENERAL
A140: 900463725 | B140: MINISTERIO DE VIVIENDA, CIUDAD Y TERRITORIO - GESTIÓN GENERAL
A141: 899999306 | B141: MINISTERIO DEL DEPORTE - GESTIÓN GENERAL
A142: 830114475 | B142: MINISTERIO DEL INTERIOR - GESTIÓN GENERAL
A143: 830115226 | B143: MINISTERIO DEL TRABAJO - GESTIÓN GENERAL
A144: 899999001 | B144: MINISTERIO EDUCACIÓN NACIONAL - GESTIÓN GENERAL
A145: 8300157281 | B145: MINISTERIO PUBLICO - INSTITUTO DE ESTUDIOS DEL MINISTERIO PUBLICO
A146: 830016624 | B146: PARQUES NACIONALES NATURALES DE COLOMBIA
A147: 900373379 | B147: POLICÍA NACIONAL - EDUCACIÓN
A148: 800141397 | B148: POLICÍA NACIONAL - GESTIÓN GENERAL
A149: 830041314 | B149: POLICÍA NACIONAL - SALUD
A150: 899999083 | B150: PRESIDENCIA DE LA REPÚBLICA - GESTIÓN GENERAL
A151: 899999119 | B151: PROCURADURÍA GENERAL DE LA NACIÓN - GESTIÓN GENERAL
A152: 899999040 | B152: REGISTRADURÍA NACIONAL DEL ESTADO CIVIL - GESTIÓN GENERAL
A153: 899999103 | B153: SENADO DE LA REPÚBLICA
A154: 899999090 | B154: SERVICIO DE LA DEUDA PÚBLICA NACIONAL
A155: 899999294 | B155: SERVICIO GEOLÓGICO COLOMBIANO
A156: 899999034 | B156: SERVICIO NACIONAL DE APRENDIZAJE (SENA)
A157: 800176089 | B157: SUPERINTENDENCIA DE INDUSTRIA Y COMERCIO
A158: 830053043 | B158: SUPERINTENDENCIA DE LA ECONOMÍA SOLIDARIA
A159: 899999007 | B159: SUPERINTENDENCIA DE NOTARIADO Y REGISTRO
A160: 800170433 | B160: SUPERINTENDENCIA DE PUERTOS Y TRANSPORTE
A161: 800250984 | B161: SUPERINTENDENCIA DE SERVICIOS PÚBLICOS DOMICILIARIOS
A162: 899999086 | B162: SUPERINTENDENCIA DE SOCIEDADES
A163: 860503600 | B163: SUPERINTENDENCIA DE SUBSIDIO FAMILIAR
A164: 800217123 | B164: SUPERINTENDENCIA DE VIGILANCIA Y SEGURIDAD PRIVADA
A165: 890999057 | B165: SUPERINTENDENCIA FINANCIERA DE COLOMBIA
A166: 860062187 | B166: SUPERINTENDENCIA NACIONAL DE SALUD
A167: 800093816 | B167: TRIBUNALES Y JUZGADOS
A168: 900514813 | B168: UNIDAD ADMINISTRATIVA ESPECIAL - AGENCIA NACIONAL DE CONTRATACIÓN PÚBLICA - COLOMBIA COMPRA EFICIENTE.
A169: 900528648 | B169: UNIDAD ADMINISTRATIVA ESPECIAL AGENCIA DEL INSPECTOR GENERAL DE TRIBUTOS, RENTAS Y CONTRIBUCIONES PARAFISCALES (ITRC)
A170: 900507741 | B170: UNIDAD ADMINISTRATIVA ESPECIAL AGENCIA NACIONAL DE DEFENSA JURÍDICA DEL ESTADO
A171: 901377527 | B171: UNIDAD ADMINISTRATIVA ESPECIAL ALIMENTACIÓN ESCOLAR
A172: 830002593 | B172: UNIDAD ADMINISTRATIVA ESPECIAL COMISIÓN DE REGULACIÓN DE COMUNICACIONES
A173: 830025406 | B173: UNIDAD ADMINISTRATIVA ESPECIAL CONTADURÍA GENERAL DE LA NACIÓN
A174: 900498879 | B174: UNIDAD ADMINISTRATIVA ESPECIAL DE GESTIÓN DE RESTITUCIÓN DE TIERRAS DESPOJADAS
A175: 900373913 | B175: UNIDAD ADMINISTRATIVA ESPECIAL DE GESTIÓN PENSIONAL Y CONTRIBUCIONES PARAFISCALES DE LA PROTECCIÓN SOCIAL (UGPPP) - GESTIÓN GENERAL
A176: 899999059 | B176: UNIDAD ADMINISTRATIVA ESPECIAL DE LA AERONÁUTICA CIVIL
A177: 900384997 | B177: UNIDAD ADMINISTRATIVA ESPECIAL DE LA JUSTICIA PENAL MILITAR Y POLICIAL
A178: 899999050 | B178: UNIDAD ADMINISTRATIVA ESPECIAL DE ORGANIZACIONES SOLIDARIAS
A179: 900678508 | B179: UNIDAD ADMINISTRATIVA ESPECIAL DEL SERVICIO PÚBLICO DE EMPLEO
A180: 800197268 | B180: UNIDAD ADMINISTRATIVA ESPECIAL DIRECCIÓN DE IMPUESTOS Y ADUANAS NACIONALES
A181: 899999327 | B181: UNIDAD ADMINISTRATIVA ESPECIAL FONDO NACIONAL DE ESTUPEFACIENTES
A182: 900180739 | B182: UNIDAD ADMINISTRATIVA ESPECIAL JUNTA CENTRAL CONTADORES
A183: 900477235 | B183: UNIDAD ADMINISTRATIVA ESPECIAL MIGRACIÓN COLOMBIA
A184: 900657800 | B184: UNIDAD ADMINISTRATIVA ESPECIAL UNIDAD DE PROYECCIÓN NORMATIVA Y ESTUDIOS DE REGULACIÓN FINANCIERA (URF)
A185: 900490473 | B185: UNIDAD DE ATENCIÓN Y REPARACIÓN INTEGRAL A LAS VÍCTIMAS
A186: 901158482 | B186: UNIDAD DE BÚSQUEDA DE PERSONAS DADAS POR DESAPARECIDAS EN EL CONTEXTO Y EN RAZÓN DEL CONFLICTO ARMADO (UBPD)
A187: 830068074 | B187: UNIDAD DE INFORMACIÓN Y ANÁLISIS FINANCIERO
A188: 901525615 | B188: UNIDAD DE PLANEACIÓN DEL SECTOR DE INFRAESTRUCTURA DE TRANSPORTE
A189: 830000282 | B189: UNIDAD DE PLANEACION MINERO ENERGÉTICA - UPME
A190: 900479658 | B190: UNIDAD DE PLANIFICACIÓN DE TIERRAS RURALES, ADECUACIÓN DE TIERRAS Y USOS AGROPECUARIOS (UPRA)
A191: 900523392 | B191: UNIDAD DE SERVICIOS PENITENCIARIOS Y CARCELARIOS - USPEC
A192: 900475780 | B192: UNIDAD NACIONAL DE PROTECCIÓN - UNP
A193: 900478966 | B193: UNIDAD NACIONAL PARA LA GESTIÓN DEL RIESGO DE DESASTRES
A194: 817002466 | B194: UNIVERSIDADES PÚBLICAS - UNIVERSIDAD AUTÓNOMA INDÍGENA INTERCULTURAL UAIIN CRIC
A195: 800144829 | B195: UNIVERSIDADES PÚBLICAS - UNIVERSIDAD COLEGIO MAYOR DE CUNDINAMARCA
A196: 890980040 | B196: UNIVERSIDADES PÚBLICAS - UNIVERSIDAD DE ANTIOQUIA
A197: 890801063 | B197: UNIVERSIDADES PÚBLICAS - UNIVERSIDAD DE CALDAS
A198: 890480123 | B198: UNIVERSIDADES PÚBLICAS - UNIVERSIDAD DE CARTAGENA
A199: 891080031 | B199: UNIVERSIDADES PÚBLICAS - UNIVERSIDAD DE CORDOBA
A200: 890680062 | B200: UNIVERSIDADES PÚBLICAS - UNIVERSIDAD DE CUNDINAMARCA
... 27 more rows

Sheet Calendario (hidden)
A1: NIT | B1: Entidad | C1: Fecha
A2: 900948958 | B2: AGENCIA DE DESARROLLO RURAL - ADR | C2: Su entidad debe presentar el plan de aportes del 16 al 20 de febrero | G2: Su entidad debe presentar el plan de aportes del 17 al 28 de febrero | H2: =COUNTIF($C$2:$C$195,G2) -> 0
A3: 901006886 | B3: AGENCIA DE RENOVACIÓN DEL TERRITORIO – ART - GESTIÓN GENERAL | C3: Su entidad debe presentar el plan de aportes del 16 al 20 de febrero | G3: Su entidad debe presentar el plan de aportes del 17 al 28 de marzo | H3: =COUNTIF($C$2:$C$195,G3) -> 0
A4: 899999162 | B4: AGENCIA LOGÍSTICA DE LAS FUERZAS MILITARES | C4: Su entidad debe presentar el plan de aportes del 16 al 20 de febrero | G4: Su entidad debe presentar el plan de aportes del 03 al 14 de marzo | H4: 0
A5: 830127607 | B5: AGENCIA NACIONAL DE HIDROCARBUROS - ANH | C5: Su entidad debe presentar el plan de aportes del 16 al 20 de febrero
A6: 830125996 | B6: AGENCIA NACIONAL DE INFRAESTRUCTURA | C6: Su entidad debe presentar el plan de aportes del 16 al 20 de febrero
A7: 900500018 | B7: AGENCIA NACIONAL DE MINERÍA - ANM | C7: Su entidad debe presentar el plan de aportes del 16 al 20 de febrero
A8: 900852998 | B8: AGENCIA NACIONAL DE SEGURIDAD VIAL | C8: Su entidad debe presentar el plan de aportes del 16 al 20 de febrero | G8: Su entidad debe presentar el plan de aportes del 16 al 20 de febrero | H8: =COUNTIF($C$2:$C$195,G8) -> 48 | J8: =194/4 -> 48.5
A9: 900948953 | B9: AGENCIA NACIONAL DE TIERRAS - ANT | C9: Su entidad debe presentar el plan de aportes del 16 al 20 de febrero | G9: Su entidad debe presentar el plan de aportes del 23 al 27 de febrero | H9: =COUNTIF($C$2:$C$195,G9) -> 49
A10: 900334265 | B10: AGENCIA NACIONAL DEL ESPECTRO - ANE | C10: Su entidad debe presentar el plan de aportes del 16 al 20 de febrero | G10: Su entidad debe presentar el plan de aportes del 02 al 06 de marzo | H10: 48
A11: 900483991 | B11: AGENCIA NACIONAL INMOBILIARIA VIRGILIO BARCO VARGAS | C11: Su entidad debe presentar el plan de aportes del 16 al 20 de febrero | G11: Su entidad debe presentar el plan de aportes del 09 al 13 de marzo | H11: 48
A12: 900477169 | B12: AGENCIA PARA LA REINCORPORACIÓN Y LA NORMALIZACIÓN - ARN | C12: Su entidad debe presentar el plan de aportes del 16 al 20 de febrero
A13: 900484852 | B13: AGENCIA PRESIDENCIAL DE COOPERACIÓN INTERNACIONAL DE COLOMBIA, APC - COLOMBIA | C13: Su entidad debe presentar el plan de aportes del 16 al 20 de febrero
A14: 800128835 | B14: ARCHIVO GENERAL DE LA NACIÓN | C14: Su entidad debe presentar el plan de aportes del 16 al 20 de febrero
A15: 900039527 | B15: ARMADA | C15: Su entidad debe presentar el plan de aportes del 16 al 20 de febrero
A16: 830065741 | B16: AUDITORÍA GENERAL DE LA REPÚBLICA - GESTIÓN GENERAL | C16: Su entidad debe presentar el plan de aportes del 16 al 20 de febrero
A17: 900479669 | B17: AUTORIDAD NACIONAL DE ACUICULTURA Y PESCA - AUNAP | C17: Su entidad debe presentar el plan de aportes del 16 al 20 de febrero
A18: 900467239 | B18: AUTORIDAD NACIONAL DE LICENCIAS AMBIENTALES ANLA | C18: Su entidad debe presentar el plan de aportes del 16 al 20 de febrero
A19: 899999118 | B19: CAJA DE RETIRO DE LAS FUERZAS MILITARES | C19: Su entidad debe presentar el plan de aportes del 09 al 13 de marzo
A20: 899999073 | B20: CAJA DE SUELDOS DE RETIRO DE LA POLICÍA NACIONAL | C20: Su entidad debe presentar el plan de aportes del 09 al 13 de marzo
A21: 899999098 | B21: CÁMARA DE REPRESENTANTES | C21: Su entidad debe presentar el plan de aportes del 09 al 13 de marzo
A22: 900492141 | B22: CENTRO DE MEMORIA HISTÓRICA | C22: Su entidad debe presentar el plan de aportes del 16 al 20 de febrero
A23: 860016951 | B23: CLUB MILITAR DE OFICIALES | C23: Su entidad debe presentar el plan de aportes del 16 al 20 de febrero
A24: 800230729 | B24: COMANDO GENERAL | C24: Su entidad debe presentar el plan de aportes del 16 al 20 de febrero
A25: 830000212 | B25: COMISIÓN DE REGULACIÓN DE AGUA POTABLE Y SANEAMIENTO BÁSICO CRA | C25: Su entidad debe presentar el plan de aportes del 16 al 20 de febrero
A26: 900034993 | B26: COMISIÓN DE REGULACIÓN DE ENERGÍA Y GAS (CREG) | C26: Su entidad debe presentar el plan de aportes del 16 al 20 de febrero
A27: 899999055 | B27: COMISIÓN DE REGULACIÓN DE INFRAESTRUCTURA Y TRANSPORTE | C27: Su entidad debe presentar el plan de aportes del 16 al 20 de febrero
A28: 800093816 | B28: COMISIÓN NACIONAL DE DISCIPLINA JUDICIAL | C28: Su entidad debe presentar el plan de aportes del 16 al 20 de febrero
A29: 900003409 | B29: COMISIÓN NACIONAL DEL SERVICIO CIVIL | C29: Su entidad debe presentar el plan de aportes del 16 al 20 de febrero
A30: 901179431 | B30: COMISIÓN PARA EL ESCLARECIMIENTO DE LA VERDAD, LA CONVIVENCIA Y LA NO REPETICIÓN EN LIQUIDACIÓN | C30: NO APARECE EN DECRETO 1477 DE 2025
A31: 830079479 | B31: COMPUTADORES PARA EDUCAR CPE | C31: Su entidad debe presentar el plan de aportes del 16 al 20 de febrero
A32: 800093816 | B32: CONSEJO DE ESTADO | C32: Su entidad debe presentar el plan de aportes del 16 al 20 de febrero
A33: 901717412 | B33: CONSEJO NACIONAL ELECTORAL | C33: Su entidad debe presentar el plan de aportes del 16 al 20 de febrero
A34: 800093816 | B34: CONSEJO SUPERIOR DE LA JUDICATURA | C34: Su entidad debe presentar el plan de aportes del 16 al 20 de febrero
A35: 899999067 | B35: CONTRALORÍA GENERAL DE LA REPÚBLICA - GESTIÓN GENERAL | C35: Su entidad debe presentar el plan de aportes del 16 al 20 de febrero
A36: 823000077 | B36: CORPORACIÓN PARA EL DESARROLLO SOSTENIBLE DE LA MOJANA Y EL SAN JORGE (CORPOMOJANA) | C36: Su entidad debe presentar el plan de aportes del 16 al 20 de febrero
A37: 838000009 | B37: CORPORACIÓN PARA EL DESARROLLO SOSTENIBLE DEL NORTE Y ORIENTE DE LA AMAZONIA (CDA) | C37: Su entidad debe presentar el plan de aportes del 16 al 20 de febrero
A38: 901144049 | B38: CORPORACIÓN AGENCIA NACIONAL DE GOBIERNO DIGITAL - AND | C38: Su entidad debe presentar el plan de aportes del 16 al 20 de febrero
A39: 800252843 | B39: CORPORACIÓN AUTÓNOMA REGIONAL DE BOYACÁ (CORPOBOYACÁ) | C39: Su entidad debe presentar el plan de aportes del 09 al 13 de marzo
A40: 890803005 | B40: CORPORACIÓN AUTÓNOMA REGIONAL DE CALDAS (CORPOCALDAS) | C40: Su entidad debe presentar el plan de aportes del 09 al 13 de marzo
A41: 800252037 | B41: CORPORACIÓN AUTÓNOMA REGIONAL DE CHIVOR (CORPOCHIVOR) | C41: Su entidad debe presentar el plan de aportes del 09 al 13 de marzo
A42: 892115314 | B42: CORPORACIÓN AUTÓNOMA REGIONAL DE LA GUAJIRA (CORPOGUAJIRA) | C42: Su entidad debe presentar el plan de aportes del 16 al 20 de febrero
A43: 890505253 | B43: CORPORACIÓN AUTÓNOMA REGIONAL DE LA FRONTERA NORORIENTAL (CORPONOR) | C43: Su entidad debe presentar el plan de aportes del 16 al 20 de febrero
A44: 832000283 | B44: CORPORACIÓN AUTÓNOMA REGIONAL DE LA ORINOQUIA (CORPORINOQUIA) | C44: Su entidad debe presentar el plan de aportes del 16 al 20 de febrero
A45: 891000627 | B45: CORPORACIÓN AUTÓNOMA REGIONAL DE LOS VALLES DEL SINÚ Y SAN JORGE (CVS) | C45: Su entidad debe presentar el plan de aportes del 16 al 20 de febrero
A46: 891222322 | B46: CORPORACIÓN AUTÓNOMA REGIONAL DE NARIÑO (CORPONARIÑO) | C46: Su entidad debe presentar el plan de aportes del 16 al 20 de febrero
A47: 891410354 | B47: CORPORACIÓN AUTÓNOMA REGIONAL DE RISARALDA (CARDER) | C47: Su entidad debe presentar el plan de aportes del 16 al 20 de febrero
A48: 804000292 | B48: CORPORACIÓN AUTÓNOMA REGIONAL DE SANTANDER (CAS) | C48: Su entidad debe presentar el plan de aportes del 16 al 20 de febrero
A49: 823000050 | B49: CORPORACIÓN AUTÓNOMA REGIONAL DE SUCRE (CARSUCRE) | C49: Su entidad debe presentar el plan de aportes del 16 al 20 de febrero
A50: 800255580 | B50: CORPORACIÓN AUTÓNOMA REGIONAL DEL ALTO MAGDALENA (CAM) | C50: Su entidad debe presentar el plan de aportes del 16 al 20 de febrero
A51: 802000339 | B51: CORPORACIÓN AUTÓNOMA REGIONAL DEL ATLÁNTICO (CRA) | C51: Su entidad debe presentar el plan de aportes del 16 al 20 de febrero
A52: 800254453 | B52: CORPORACIÓN AUTÓNOMA REGIONAL DEL CANAL DEL DIQUE (CARDIQUE) | C52: Su entidad debe presentar el plan de aportes del 16 al 20 de febrero
A53: 891501885 | B53: CORPORACIÓN AUTÓNOMA REGIONAL DEL CAUCA (CRC) | C53: Su entidad debe presentar el plan de aportes del 16 al 20 de febrero
A54: 811000231 | B54: CORPORACIÓN AUTÓNOMA REGIONAL DEL CENTRO DE ANTIOQUIA (CORANTIOQUIA) | C54: Su entidad debe presentar el plan de aportes del 16 al 20 de febrero
A55: 892301483 | B55: CORPORACIÓN AUTÓNOMA REGIONAL DEL CESAR (CORPOCESAR) | C55: Su entidad debe presentar el plan de aportes del 16 al 20 de febrero
A56: 832000171 | B56: CORPORACIÓN AUTÓNOMA REGIONAL DEL GUAVIO (CORPOGUAVIO) | C56: Su entidad debe presentar el plan de aportes del 16 al 20 de febrero
A57: 800099287 | B57: CORPORACIÓN AUTÓNOMA REGIONAL DEL MAGDALENA (CORPAMAG) | C57: Su entidad debe presentar el plan de aportes del 09 al 13 de marzo
A58: 890000447 | B58: CORPORACIÓN AUTÓNOMA REGIONAL DEL QUINDÍO (CRQ) | C58: Su entidad debe presentar el plan de aportes del 09 al 13 de marzo
A59: 806000327 | B59: CORPORACIÓN AUTÓNOMA REGIONAL DEL SUR DE BOLÍVAR (CSB) | C59: Su entidad debe presentar el plan de aportes del 09 al 13 de marzo
A60: 890704536 | B60: CORPORACIÓN AUTÓNOMA REGIONAL DEL TOLIMA (CORTOLIMA) | C60: Su entidad debe presentar el plan de aportes del 23 al 27 de febrero
A61: 899999238 | B61: CORPORACIÓN AUTÓNOMA REGIONAL PARA EL DESARROLLO SOSTENIBLE DEL CHOCO (CODECHOCO) | C61: Su entidad debe presentar el plan de aportes del 23 al 27 de febrero
A62: 890201573 | B62: CORPORACIÓN AUTÓNOMA REGIONAL PARA LA DEFENSA DE LA MESETA DE BUCARAMANGA (CDMB) | C62: Su entidad debe presentar el plan de aportes del 23 al 27 de febrero
A63: 800237214 | B63: CORPORACIÓN NACIONAL PARA LA RECONSTRUCCIÓN DE LA CUENCA DEL RIO PÁEZ Y ZONAS ALEDAÑAS NASA KI WE | C63: Su entidad debe presentar el plan de aportes del 23 al 27 de febrero
A64: 827000031 | B64: CORPORACIÓN PARA EL DESARROLLO SOSTENIBLE DEL ARCHIPIÉLAGO DE SAN ANDRES, PROVIDENCIA Y SANTA CATALINA (CORALINA) | C64: Su entidad debe presentar el plan de aportes del 23 al 27 de febrero
A65: 822000091 | B65: CORPORACIÓN PARA EL DESARROLLO SOSTENIBLE DEL ÁREA DE MANEJO ESPECIAL LA MACARENA (CORMACARENA) | C65: Su entidad debe presentar el plan de aportes del 23 al 27 de febrero
A66: 800252844 | B66: CORPORACIÓN PARA EL DESARROLLO SOSTENIBLE DEL SUR DE LA AMAZONIA (CORPOAMAZONIA) | C66: Su entidad debe presentar el plan de aportes del 23 al 27 de febrero
A67: 890907748 | B67: CORPORACIÓN PARA EL DESARROLLO SOSTENIBLE DEL URABÁ (CORPOURABÁ) | C67: Su entidad debe presentar el plan de aportes del 23 al 27 de febrero
A68: 800093816 | B68: CORTE CONSTITUCIONAL | C68: Su entidad debe presentar el plan de aportes del 23 al 27 de febrero
A69: 800093816 | B69: CORTE SUPREMA DE JUSTICIA | C69: Su entidad debe presentar el plan de aportes del 23 al 27 de febrero
A70: 899999717 | B70: DEFENSA CIVIL COLOMBIANA, GUILLERMO LEÓN VALENCIA | C70: Su entidad debe presentar el plan de aportes del 23 al 27 de febrero
A71: 800186061 | B71: DEFENSORÍA DEL PUEBLO | C71: Su entidad debe presentar el plan de aportes del 23 al 27 de febrero
A72: 899999020 | B72: DEPARTAMENTO ADMINISTRATIVO DE LA FUNCIÓN PÚBLICA- GESTIÓN GENERAL | C72: Su entidad debe presentar el plan de aportes del 23 al 27 de febrero
A73: 900475460 | B73: DEPARTAMENTO ADMINISTRATIVO DIRECCIÓN NACIONAL DE INTELIGENCIA - GESTIÓN GENERAL | C73: Su entidad debe presentar el plan de aportes del 23 al 27 de febrero
A74: 899999027 | B74: DEPARTAMENTO ADMINISTRATIVO NACIONAL DE ESTADÍSTICA (DANE) - GESTIÓN GENERAL | C74: Su entidad debe presentar el plan de aportes del 23 al 27 de febrero
A75: 899999011 | B75: DEPARTAMENTO ADMINISTRATIVO NACIONAL DE PLANEACIÓN - GESTIÓN GENERAL | C75: Su entidad debe presentar el plan de aportes del 09 al 13 de marzo
A76: 900039533 | B76: DEPARTAMENTO ADMINISTRATIVO PARA LA PROSPERIDAD SOCIAL - GESTIÓN GENERAL | C76: Su entidad debe presentar el plan de aportes del 09 al 13 de marzo
A77: 830114475 | B77: DIRECCIÓN DE LA AUTORIDAD NACIONAL DE CONSULTA PREVIA | C77: Su entidad debe presentar el plan de aportes del 09 al 13 de marzo
A78: 901352963 | B78: DIRECCIÓN DE SUSTITUCIÓN DE CULTIVOS USO ILÍCITO | C78: Su entidad debe presentar el plan de aportes del 23 al 27 de febrero
A79: 900894833 | B79: DIRECCIÓN DE VETERANOS Y REHABILITACIÓN INCLUSIVA | C79: Su entidad debe presentar el plan de aportes del 23 al 27 de febrero
A80: 830115297 | B80: DIRECCIÓN GENERAL DE COMERCIO EXTERIOR | C80: Su entidad debe presentar el plan de aportes del 23 al 27 de febrero
A81: 830027904 | B81: DIRECCIÓN GENERAL MARÍTIMA (DIMAR) | C81: Su entidad debe presentar el plan de aportes del 23 al 27 de febrero
A82: 900639630 | B82: DIRECCIÓN NACIONAL DE BOMBEROS | C82: Su entidad debe presentar el plan de aportes del 23 al 27 de febrero
A83: 800185929 | B83: DIRECCIÓN NACIONAL DEL DERECHO DE AUTOR | C83: Su entidad debe presentar el plan de aportes del 23 al 27 de febrero
A84: 800130632 | B84: EJÉRCITO | C84: Su entidad debe presentar el plan de aportes del 23 al 27 de febrero
A85: 899999054 | B85: ESCUELA SUPERIOR DE ADMINISTRACIÓN PÚBLICA (ESAP) | C85: Su entidad debe presentar el plan de aportes del 23 al 27 de febrero
A86: 860523694 | B86: ESCUELA TECNOLÓGICA INSTITUTO TÉCNICO CENTRAL | C86: Su entidad debe presentar el plan de aportes del 23 al 27 de febrero
A87: 800152783 | B87: FISCALÍA GENERAL DE LA NACIÓN - GESTIÓN GENERAL | C87: Su entidad debe presentar el plan de aportes del 23 al 27 de febrero
A88: 900450205 | B88: FONDO ADAPTACIÓN | C88: Su entidad debe presentar el plan de aportes del 23 al 27 de febrero
A89: 800252683 | B89: FONDO DE BIENESTAR SOCIAL DE LA CONTRALORÍA GENERAL DE LA REPÚBLICA | C89: Su entidad debe presentar el plan de aportes del 23 al 27 de febrero
A90: 899999734 | B90: FONDO DE PREVISIÓN SOCIAL DEL CONGRESO - CESANTÍAS Y VIVIENDA | C90: Su entidad debe presentar el plan de aportes del 23 al 27 de febrero
A91: 899999734 | B91: FONDO DE PREVISIÓN SOCIAL DEL CONGRESO - PENSIONES | C91: Su entidad debe presentar el plan de aportes del 23 al 27 de febrero
A92: 901148337 | B92: FONDO ESPECIAL PARA LA ADMINISTRACIÓN DE BIENES DE LA FISCALÍA GENERAL DE LA NACIÓN | C92: Su entidad debe presentar el plan de aportes del 23 al 27 de febrero
A93: 830025267 | B93: FONDO NACIONAL AMBIENTAL - GESTIÓN GENERAL | C93: Su entidad debe presentar el plan de aportes del 23 al 27 de febrero
A94: 830121208 | B94: FONDO NACIONAL DE VIVIENDA - FONVIVIENDA | C94: Su entidad debe presentar el plan de aportes del 23 al 27 de febrero
A95: 800112806 | B95: FONDO PASIVO SOCIAL DE FERROCARRILES NACIONALES DE COLOMBIA - SALUD | C95: Su entidad debe presentar el plan de aportes del 09 al 13 de marzo
A96: 800112806 | B96: FONDO PASIVO SOCIAL DE FERROCARRILES NACIONALES DE COLOMBIA -PENSIONES | C96: Su entidad debe presentar el plan de aportes del 09 al 13 de marzo
A97: 860020227 | B97: FONDO ROTATORIO DE LA POLICÍA - GESTIÓN GENERAL | C97: Su entidad debe presentar el plan de aportes del 09 al 13 de marzo
A98: 899999737 | B98: FONDO ROTATORIO DE LA REGISTRADURÍA | C98: Su entidad debe presentar el plan de aportes del 23 al 27 de febrero
A99: 800072977 | B99: FONDO ROTATORIO DEL DANE | C99: Su entidad debe presentar el plan de aportes del 23 al 27 de febrero
A100: 860511071 | B100: FONDO ROTATORIO DEL MINISTERIO DE RELACIONES EXTERIORES | C100: Su entidad debe presentar el plan de aportes del 23 al 27 de febrero
A101: 830085129 | B101: FONDO SOCIAL DE VIVIENDA DE LA REGISTRADURÍA NACIONAL DEL ESTADO CIVIL | C101: Su entidad debe presentar el plan de aportes del 23 al 27 de febrero
A102: 800131648 | B102: FONDO ÚNICO DE TECNOLOGÍAS DE LA INFORMACIÓN Y LAS COMUNICACIONES | C102: Su entidad debe presentar el plan de aportes del 23 al 27 de febrero
A103: 899999102 | B103: FUERZA AÉREA | C103: Su entidad debe presentar el plan de aportes del 23 al 27 de febrero
A104: 830040256 | B104: HOSPITAL MILITAR | C104: Su entidad debe presentar el plan de aportes del 23 al 27 de febrero
A105: 899999096 | B105: INSTITUTO CARO Y CUERVO | C105: Su entidad debe presentar el plan de aportes del 23 al 27 de febrero
A106: 860041247 | B106: INSTITUTO CASAS FISCALES DEL EJÉRCITO | C106: Su entidad debe presentar el plan de aportes del 23 al 27 de febrero
A107: 899999069 | B107: INSTITUTO COLOMBIANO AGROPECUARIO (ICA) | C107: Su entidad debe presentar el plan de aportes del 23 al 27 de febrero
A108: 830067892 | B108: INSTITUTO COLOMBIANO DE ANTROPOLOGÍA E HISTORIA | C108: Su entidad debe presentar el plan de aportes del 23 al 27 de febrero
A109: 800213389 | B109: INSTITUTO COLOMBIANO DE BIENESTAR FAMILIAR (ICBF) | C109: Su entidad debe presentar el plan de aportes del 23 al 27 de febrero
A110: 830000602 | B110: INSTITUTO DE HIDROLOGÍA, METEOROLOGÍA Y ESTUDIOS AMBIENTALES- IDEAM | C110: Su entidad debe presentar el plan de aportes del 23 al 27 de febrero
A111: 899999048 | B111: INSTITUTO DE PLANIFICACIÓN Y PROMOCIÓN DE SOLUCIONES ENERGÉTICAS PARA LAS ZONAS NO INTERCONECTADAS - IPSE | C111: Su entidad debe presentar el plan de aportes del 23 al 27 de febrero
A112: 899999004 | B112: INSTITUTO GEOGRÁFICO AGUSTÍN CODAZZI - IGAC | C112: Su entidad debe presentar el plan de aportes del 23 al 27 de febrero
A113: 892400461 | B113: INSTITUTO NACIONAL DE FORMACIÓN TÉCNICA PROFESIONAL DE SAN ANDRES Y PROVIDENCIA | C113: Su entidad debe presentar el plan de aportes del 23 al 27 de febrero
A114: 860402193 | B114: INSTITUTO NACIONAL DE FORMACIÓN TÉCNICA PROFESIONAL DE SAN JUAN DEL CESAR | C114: Su entidad debe presentar el plan de aportes del 23 al 27 de febrero
A115: 800150861 | B115: INSTITUTO NACIONAL DE MEDICINA LEGAL Y CIENCIAS FORENSES | C115: Su entidad debe presentar el plan de aportes del 09 al 13 de marzo
A116: 900494393 | B116: INSTITUTO NACIONAL DE METROLOGÍA - INM | C116: Su entidad debe presentar el plan de aportes del 09 al 13 de marzo
A117: 899999403 | B117: INSTITUTO NACIONAL DE SALUD (INS) | C117: Su entidad debe presentar el plan de aportes del 09 al 13 de marzo
A118: 800215807 | B118: INSTITUTO NACIONAL DE VÍAS | C118: Su entidad debe presentar el plan de aportes del 02 al 06 de marzo
A119: 830000167 | B119: INSTITUTO NACIONAL DE VIGILANCIA DE MEDICAMENTOS Y ALIMENTOS - INVIMA | C119: Su entidad debe presentar el plan de aportes del 02 al 06 de marzo
A120: 860015971 | B120: INSTITUTO NACIONAL PARA CIEGOS (INCI) | C120: Su entidad debe presentar el plan de aportes del 02 al 06 de marzo
A121: 860016627 | B121: INSTITUTO NACIONAL PARA SORDOS (INSOR) | C121: Su entidad debe presentar el plan de aportes del 02 al 06 de marzo
A122: 800215546 | B122: INSTITUTO NACIONAL PENITENCIARIO Y CARCELARIO - INPEC | C122: Su entidad debe presentar el plan de aportes del 02 al 06 de marzo
A123: 800248004 | B123: INSTITUTO TÉCNICO NACIONAL DE COMERCIO "SIMÓN RODRÍGUEZ" DE CALI | C123: Su entidad debe presentar el plan de aportes del 02 al 06 de marzo
A124: 800173719 | B124: INSTITUTO TOLIMENSE DE FORMACIÓN TÉCNICA PROFESIONAL | C124: Su entidad debe presentar el plan de aportes del 02 al 06 de marzo
A125: 901140004 | B125: JURISDICCIÓN ESPECIAL PARA LA PAZ - GESTIÓN GENERAL | C125: Su entidad debe presentar el plan de aportes del 02 al 06 de marzo
A126: 899999028 | B126: MINISTERIO DE AGRICULTURA Y DESARROLLO RURAL - GESTIÓN GENERAL | C126: Su entidad debe presentar el plan de aportes del 02 al 06 de marzo
A127: 830115395 | B127: MINISTERIO DE AMBIENTE Y DESARROLLO SOSTENIBLE - GESTIÓN GENERAL | C127: Su entidad debe presentar el plan de aportes del 02 al 06 de marzo
A128: 899999296 | B128: MINISTERIO DE CIENCIA, TECNOLOGÍA E INNOVACIÓN - GESTIÓN GENERAL | C128: Su entidad debe presentar el plan de aportes del 02 al 06 de marzo
A129: 830115297 | B129: MINISTERIO DE COMERCIO INDUSTRIA TURISMO - GESTIÓN GENERAL | C129: Su entidad debe presentar el plan de aportes del 02 al 06 de marzo
A130: 830034348 | B130: MINISTERIO DE CULTURA - GESTIÓN GENERAL | C130: Su entidad debe presentar el plan de aportes del 09 al 13 de marzo
A131: 899999003 | B131: MINISTERIO DE DEFENSA NACIONAL - GESTIÓN GENERAL | C131: Su entidad debe presentar el plan de aportes del 02 al 06 de marzo
A132: 899999003 | B132: MINISTERIO DE DEFENSA NACIONAL - SALUD | C132: Su entidad debe presentar el plan de aportes del 02 al 06 de marzo
A133: 899999090 | B133: MINISTERIO DE HACIENDA Y CRÉDITO PÚBLICO - GESTIÓN GENERAL | C133: Su entidad debe presentar el plan de aportes del 02 al 06 de marzo
A134: 901733502 | B134: MINISTERIO DE IGUALDAD Y EQUIDAD | C134: Su entidad debe presentar el plan de aportes del 09 al 13 de marzo
A135: 900457461 | B135: MINISTERIO DE JUSTICIA Y DEL DERECHO - GESTIÓN GENERAL | C135: Su entidad debe presentar el plan de aportes del 09 al 13 de marzo
A136: 899999022 | B136: MINISTERIO DE MINAS Y ENERGÍA - GESTIÓN GENERAL | C136: Su entidad debe presentar el plan de aportes del 02 al 06 de marzo
A137: 899999042 | B137: MINISTERIO DE RELACIONES EXTERIORES - GESTIÓN GENERAL | C137: Su entidad debe presentar el plan de aportes del 02 al 06 de marzo
A138: 900474727 | B138: MINISTERIO DE SALUD Y PROTECCIÓN SOCIAL - GESTIÓN GENERAL | C138: Su entidad debe presentar el plan de aportes del 02 al 06 de marzo
A139: 899999053 | B139: MINISTERIO DE TECNOLOGÍAS DE LA INFORMACIÓN Y LAS COMUNICACIONES - GESTIÓN GENERAL | C139: Su entidad debe presentar el plan de aportes del 02 al 06 de marzo
A140: 899999055 | B140: MINISTERIO DE TRANSPORTE - GESTIÓN GENERAL | C140: Su entidad debe presentar el plan de aportes del 02 al 06 de marzo
A141: 900463725 | B141: MINISTERIO DE VIVIENDA, CIUDAD Y TERRITORIO - GESTIÓN GENERAL | C141: Su entidad debe presentar el plan de aportes del 02 al 06 de marzo
A142: 899999306 | B142: MINISTERIO DEL DEPORTE - GESTIÓN GENERAL | C142: Su entidad debe presentar el plan de aportes del 02 al 06 de marzo
A143: 830114475 | B143: MINISTERIO DEL INTERIOR - GESTIÓN GENERAL | C143: Su entidad debe presentar el plan de aportes del 02 al 06 de marzo
A144: 830115226 | B144: MINISTERIO DEL TRABAJO - GESTIÓN GENERAL | C144: Su entidad debe presentar el plan de aportes del 02 al 06 de marzo
A145: 899999001 | B145: MINISTERIO EDUCACIÓN NACIONAL - GESTIÓN GENERAL | C145: Su entidad debe presentar el plan de aportes del 02 al 06 de marzo
A146: 8300157281 | B146: MINISTERIO PUBLICO - INSTITUTO DE ESTUDIOS DEL MINISTERIO PUBLICO | C146: Su entidad debe presentar el plan de aportes del 02 al 06 de marzo
A147: 830016624 | B147: PARQUES NACIONALES NATURALES DE COLOMBIA | C147: Su entidad debe presentar el plan de aportes del 02 al 06 de marzo
A148: 900373379 | B148: POLICÍA NACIONAL - EDUCACIÓN | C148: Su entidad debe presentar el plan de aportes del 02 al 06 de marzo
A149: 800141397 | B149: POLICÍA NACIONAL - GESTIÓN GENERAL | C149: Su entidad debe presentar el plan de aportes del 02 al 06 de marzo
A150: 830041314 | B150: POLICÍA NACIONAL - SALUD | C150: Su entidad debe presentar el plan de aportes del 02 al 06 de marzo
A151: 899999083 | B151: PRESIDENCIA DE LA REPÚBLICA - GESTIÓN GENERAL | C151: Su entidad debe presentar el plan de aportes del 02 al 06 de marzo
A152: 899999119 | B152: PROCURADURÍA GENERAL DE LA NACIÓN - GESTIÓN GENERAL | C152: Su entidad debe presentar el plan de aportes del 02 al 06 de marzo
A153: 899999040 | B153: REGISTRADURÍA NACIONAL DEL ESTADO CIVIL - GESTIÓN GENERAL | C153: Su entidad debe presentar el plan de aportes del 02 al 06 de marzo
A154: 899999103 | B154: SENADO DE LA REPÚBLICA | C154: Su entidad debe presentar el plan de aportes del 02 al 06 de marzo
A155: 899999090 | B155: SERVICIO DE LA DEUDA PÚBLICA NACIONAL | C155: Su entidad debe presentar el plan de aportes del 02 al 06 de marzo
A156: 899999294 | B156: SERVICIO GEOLÓGICO COLOMBIANO | C156: Su entidad debe presentar el plan de aportes del 02 al 06 de marzo
A157: 899999034 | B157: SERVICIO NACIONAL DE APRENDIZAJE (SENA) | C157: Su entidad debe presentar el plan de aportes del 02 al 06 de marzo
A158: 800176089 | B158: SUPERINTENDENCIA DE INDUSTRIA Y COMERCIO | C158: Su entidad debe presentar el plan de aportes del 02 al 06 de marzo
A159: 830053043 | B159: SUPERINTENDENCIA DE LA ECONOMÍA SOLIDARIA | C159: Su entidad debe presentar el plan de aportes del 02 al 06 de marzo
A160: 899999007 | B160: SUPERINTENDENCIA DE NOTARIADO Y REGISTRO | C160: Su entidad debe presentar el plan de aportes del 02 al 06 de marzo
A161: 800170433 | B161: SUPERINTENDENCIA DE PUERTOS Y TRANSPORTE | C161: Su entidad debe presentar el plan de aportes del 02 al 06 de marzo
A162: 800250984 | B162: SUPERINTENDENCIA DE SERVICIOS PÚBLICOS DOMICILIARIOS | C162: Su entidad debe presentar el plan de aportes del 02 al 06 de marzo
A163: 899999086 | B163: SUPERINTENDENCIA DE SOCIEDADES | C163: Su entidad debe presentar el plan de aportes del 02 al 06 de marzo
A164: 860503600 | B164: SUPERINTENDENCIA DE SUBSIDIO FAMILIAR | C164: Su entidad debe presentar el plan de aportes del 02 al 06 de marzo
A165: 800217123 | B165: SUPERINTENDENCIA DE VIGILANCIA Y SEGURIDAD PRIVADA | C165: Su entidad debe presentar el plan de aportes del 02 al 06 de marzo
A166: 890999057 | B166: SUPERINTENDENCIA FINANCIERA DE COLOMBIA | C166: Su entidad debe presentar el plan de aportes del 02 al 06 de marzo
A167: 860062187 | B167: SUPERINTENDENCIA NACIONAL DE SALUD | C167: Su entidad debe presentar el plan de aportes del 02 al 06 de marzo
A168: 800093816 | B168: TRIBUNALES Y JUZGADOS | C168: Su entidad debe presentar el plan de aportes del 02 al 06 de marzo
A169: 900514813 | B169: UNIDAD ADMINISTRATIVA ESPECIAL - AGENCIA NACIONAL DE CONTRATACIÓN PÚBLICA - COLOMBIA COMPRA EFICIENTE. | C169: Su entidad debe presentar el plan de aportes del 09 al 13 de marzo
A170: 900528648 | B170: UNIDAD ADMINISTRATIVA ESPECIAL AGENCIA DEL INSPECTOR GENERAL DE TRIBUTOS, RENTAS Y CONTRIBUCIONES PARAFISCALES (ITRC) | C170: Su entidad debe presentar el plan de aportes del 09 al 13 de marzo
A171: 900507741 | B171: UNIDAD ADMINISTRATIVA ESPECIAL AGENCIA NACIONAL DE DEFENSA JURÍDICA DEL ESTADO | C171: Su entidad debe presentar el plan de aportes del 09 al 13 de marzo
A172: 901377527 | B172: UNIDAD ADMINISTRATIVA ESPECIAL ALIMENTACIÓN ESCOLAR | C172: Su entidad debe presentar el plan de aportes del 09 al 13 de marzo
A173: 830002593 | B173: UNIDAD ADMINISTRATIVA ESPECIAL COMISIÓN DE REGULACIÓN DE COMUNICACIONES | C173: Su entidad debe presentar el plan de aportes del 09 al 13 de marzo
A174: 830025406 | B174: UNIDAD ADMINISTRATIVA ESPECIAL CONTADURÍA GENERAL DE LA NACIÓN | C174: Su entidad debe presentar el plan de aportes del 09 al 13 de marzo
A175: 900498879 | B175: UNIDAD ADMINISTRATIVA ESPECIAL DE GESTIÓN DE RESTITUCIÓN DE TIERRAS DESPOJADAS | C175: Su entidad debe presentar el plan de aportes del 09 al 13 de marzo
A176: 900373913 | B176: UNIDAD ADMINISTRATIVA ESPECIAL DE GESTIÓN PENSIONAL Y CONTRIBUCIONES PARAFISCALES DE LA PROTECCIÓN SOCIAL (UGPPP) - GESTIÓN GENERAL | C176: Su entidad debe presentar el plan de aportes del 09 al 13 de marzo
A177: 899999059 | B177: UNIDAD ADMINISTRATIVA ESPECIAL DE LA AERONÁUTICA CIVIL | C177: Su entidad debe presentar el plan de aportes del 09 al 13 de marzo
A178: 900384997 | B178: UNIDAD ADMINISTRATIVA ESPECIAL DE LA JUSTICIA PENAL MILITAR Y POLICIAL | C178: Su entidad debe presentar el plan de aportes del 09 al 13 de marzo
A179: 899999050 | B179: UNIDAD ADMINISTRATIVA ESPECIAL DE ORGANIZACIONES SOLIDARIAS | C179: Su entidad debe presentar el plan de aportes del 09 al 13 de marzo
A180: 900678508 | B180: UNIDAD ADMINISTRATIVA ESPECIAL DEL SERVICIO PÚBLICO DE EMPLEO | C180: Su entidad debe presentar el plan de aportes del 09 al 13 de marzo
A181: 800197268 | B181: UNIDAD ADMINISTRATIVA ESPECIAL DIRECCIÓN DE IMPUESTOS Y ADUANAS NACIONALES | C181: Su entidad debe presentar el plan de aportes del 09 al 13 de marzo
A182: 899999327 | B182: UNIDAD ADMINISTRATIVA ESPECIAL FONDO NACIONAL DE ESTUPEFACIENTES | C182: Su entidad debe presentar el plan de aportes del 09 al 13 de marzo
A183: 900180739 | B183: UNIDAD ADMINISTRATIVA ESPECIAL JUNTA CENTRAL CONTADORES | C183: Su entidad debe presentar el plan de aportes del 09 al 13 de marzo
A184: 900477235 | B184: UNIDAD ADMINISTRATIVA ESPECIAL MIGRACIÓN COLOMBIA | C184: Su entidad debe presentar el plan de aportes del 09 al 13 de marzo
A185: 900657800 | B185: UNIDAD ADMINISTRATIVA ESPECIAL UNIDAD DE PROYECCIÓN NORMATIVA Y ESTUDIOS DE REGULACIÓN FINANCIERA (URF) | C185: Su entidad debe presentar el plan de aportes del 09 al 13 de marzo
A186: 900490473 | B186: UNIDAD DE ATENCIÓN Y REPARACIÓN INTEGRAL A LAS VÍCTIMAS | C186: Su entidad debe presentar el plan de aportes del 09 al 13 de marzo
A187: 901158482 | B187: UNIDAD DE BÚSQUEDA DE PERSONAS DADAS POR DESAPARECIDAS EN EL CONTEXTO Y EN RAZÓN DEL CONFLICTO ARMADO (UBPD) | C187: Su entidad debe presentar el plan de aportes del 09 al 13 de marzo
A188: 830068074 | B188: UNIDAD DE INFORMACIÓN Y ANÁLISIS FINANCIERO | C188: Su entidad debe presentar el plan de aportes del 09 al 13 de marzo
A189: 901525615 | B189: UNIDAD DE PLANEACIÓN DEL SECTOR DE INFRAESTRUCTURA DE TRANSPORTE | C189: Su entidad debe presentar el plan de aportes del 09 al 13 de marzo
A190: 830000282 | B190: UNIDAD DE PLANEACION MINERO ENERGÉTICA - UPME | C190: Su entidad debe presentar el plan de aportes del 09 al 13 de marzo
A191: 900479658 | B191: UNIDAD DE PLANIFICACIÓN DE TIERRAS RURALES, ADECUACIÓN DE TIERRAS Y USOS AGROPECUARIOS (UPRA) | C191: Su entidad debe presentar el plan de aportes del 09 al 13 de marzo
A192: 900523392 | B192: UNIDAD DE SERVICIOS PENITENCIARIOS Y CARCELARIOS - USPEC | C192: Su entidad debe presentar el plan de aportes del 09 al 13 de marzo
A193: 900475780 | B193: UNIDAD NACIONAL DE PROTECCIÓN - UNP | C193: Su entidad debe presentar el plan de aportes del 09 al 13 de marzo
A194: 900478966 | B194: UNIDAD NACIONAL PARA LA GESTIÓN DEL RIESGO DE DESASTRES | C194: Su entidad debe presentar el plan de aportes del 09 al 13 de marzo
A195: 817002466 | B195: UNIVERSIDADES PÚBLICAS - UNIVERSIDAD AUTÓNOMA INDÍGENA INTERCULTURAL UAIIN CRIC | C195: Su entidad debe presentar el plan de aportes del 09 al 13 de marzo
A196: 800144829 | B196: UNIVERSIDADES PÚBLICAS - UNIVERSIDAD COLEGIO MAYOR DE CUNDINAMARCA
A197: 890980040 | B197: UNIVERSIDADES PÚBLICAS - UNIVERSIDAD DE ANTIOQUIA
A198: 890801063 | B198: UNIVERSIDADES PÚBLICAS - UNIVERSIDAD DE CALDAS
A199: 890480123 | B199: UNIVERSIDADES PÚBLICAS - UNIVERSIDAD DE CARTAGENA
A200: 891080031 | B200: UNIVERSIDADES PÚBLICAS - UNIVERSIDAD DE CORDOBA
... 28 more rows

Sheet Fondo Fiduprevisora (hidden)
A1: NIT | B1: Entidad | C1: Retiros (Desembolsos) | D1: Saldo en el Fondo | G1: NIT | H1: Entidad | I1: Retiros (Desembolsos) | J1: Saldo en el Fondo
A2: 800072977 | B2: FONDO ROTATORIO DEL DANE | C2: =SUMIF(G:J,Tabla3[[#This Row],[NIT]],I:I) -> 0 | D2: =SUMIF(G:J,Tabla3[[#This Row],[NIT]],J:J) -> 0 | G2: 800093816 | H2: RAMA JUDICIAL | I2: 380918937 | J2: 2.630601455e+11
A3: 800093816 | B3: COMISIÓN NACIONAL DE DISCIPLINA JUDICIAL | C3: =SUMIF(G:J,Tabla3[[#This Row],[NIT]],I:I) -> 380918937 | D3: =SUMIF(G:J,Tabla3[[#This Row],[NIT]],J:J) -> 2.630601455e+11 | G3: 800099287 | H3: CORPORACION AUTONOMA REGIONAL DEL MAGDALENA | I3: 0 | J3: 134112301
A4: 800093816 | B4: CONSEJO DE ESTADO | C4: =SUMIF(G:J,Tabla3[[#This Row],[NIT]],I:I) -> 380918937 | D4: =SUMIF(G:J,Tabla3[[#This Row],[NIT]],J:J) -> 2.630601455e+11 | G4: 800128835 | H4: ARCHIVO GENERAL DE LA NACION | I4: 0 | J4: 30505248.12
A5: 800093816 | B5: CONSEJO SUPERIOR DE LA JUDICATURA | C5: =SUMIF(G:J,Tabla3[[#This Row],[NIT]],I:I) -> 380918937 | D5: =SUMIF(G:J,Tabla3[[#This Row],[NIT]],J:J) -> 2.630601455e+11 | G5: 800131648 | H5: FONDO DE TECNOLOGIAS DE LA INFORMACION Y LAS COMUN | I5: 0 | J5: 1.00511065e+10
A6: 800093816 | B6: CORTE CONSTITUCIONAL | C6: =SUMIF(G:J,Tabla3[[#This Row],[NIT]],I:I) -> 380918937 | D6: =SUMIF(G:J,Tabla3[[#This Row],[NIT]],J:J) -> 2.630601455e+11 | G6: 800141397 | H6: POLICIA NACIONAL - DIRECCION LOGISTICA Y FINANCIER | I6: 1.042629963e+11 | J6: 1.2910761e+11
A7: 800093816 | B7: CORTE SUPREMA DE JUSTICIA | C7: =SUMIF(G:J,Tabla3[[#This Row],[NIT]],I:I) -> 380918937 | D7: =SUMIF(G:J,Tabla3[[#This Row],[NIT]],J:J) -> 2.630601455e+11 | G7: 800150861 | H7: INSTITUTO NACIONAL DE MEDICINA LEGAL Y CIENCIAS FO | I7: 246281036 | J7: 162474682
A8: 800093816 | B8: TRIBUNALES Y JUZGADOS | C8: =SUMIF(G:J,Tabla3[[#This Row],[NIT]],I:I) -> 380918937 | D8: =SUMIF(G:J,Tabla3[[#This Row],[NIT]],J:J) -> 2.630601455e+11 | G8: 800152783 | H8: FISCALIA GENERAL DE LA NACION | I8: 586697304 | J8: 1.254663787e+11
A9: 800099287 | B9: CORPORACIÓN AUTÓNOMA REGIONAL DEL MAGDALENA (CORPAMAG) | C9: =SUMIF(G:J,Tabla3[[#This Row],[NIT]],I:I) -> 0 | D9: =SUMIF(G:J,Tabla3[[#This Row],[NIT]],J:J) -> 134112301 | G9: 800170433 | H9: SUPERINTENDENCIA DE PUERTOS Y TRANSPORTE | I9: 0 | J9: 2113598632
A10: 800112806 | B10: FONDO PASIVO SOCIAL DE FERROCARRILES NACIONALES DE COLOMBIA - SALUD | C10: =SUMIF(G:J,Tabla3[[#This Row],[NIT]],I:I) -> 0 | D10: =SUMIF(G:J,Tabla3[[#This Row],[NIT]],J:J) -> 0 | G10: 800176089 | H10: SUPERINTENDENCIA INDUSTRIA Y COMERCIO | I10: 0 | J10: 2094319880
A11: 800112806 | B11: FONDO PASIVO SOCIAL DE FERROCARRILES NACIONALES DE COLOMBIA -PENSIONES | C11: =SUMIF(G:J,Tabla3[[#This Row],[NIT]],I:I) -> 0 | D11: =SUMIF(G:J,Tabla3[[#This Row],[NIT]],J:J) -> 0 | G11: 800186061 | H11: DEFENSORIA DEL PUEBLO | I11: 548224274 | J11: 512009075.2
A12: 800118954 | B12: UNIVERSIDADES PÚBLICAS - UNIVERSIDAD DE NARIÑO | C12: =SUMIF(G:J,Tabla3[[#This Row],[NIT]],I:I) -> 0 | D12: =SUMIF(G:J,Tabla3[[#This Row],[NIT]],J:J) -> 0 | G12: 800197268 | H12: U.A.E. DIRECCION DE IMPUESTOS Y ADUANAS NACIONALES | I12: 20702608073 | J12: 5.236672531e+10
A13: 800128835 | B13: ARCHIVO GENERAL DE LA NACIÓN | C13: =SUMIF(G:J,Tabla3[[#This Row],[NIT]],I:I) -> 0 | D13: =SUMIF(G:J,Tabla3[[#This Row],[NIT]],J:J) -> 30505248.12 | G13: 800213389 | H13: INSTITUTO COLOMBIANO DE BIENESTAR FAMILIAR | I13: 6722426661 | J13: 4570726035
A14: 800130632 | B14: EJÉRCITO | C14: =SUMIF(G:J,Tabla3[[#This Row],[NIT]],I:I) -> 0 | D14: =SUMIF(G:J,Tabla3[[#This Row],[NIT]],J:J) -> 0 | G14: 800215546 | H14: INSTITUTO NACIONAL PENITENCIARIO Y CARCELARIO-INPE | I14: 0 | J14: 2.726927137e+10
A15: 800131648 | B15: FONDO ÚNICO DE TECNOLOGÍAS DE LA INFORMACIÓN Y LAS COMUNICACIONES | C15: =SUMIF(G:J,Tabla3[[#This Row],[NIT]],I:I) -> 0 | D15: =SUMIF(G:J,Tabla3[[#This Row],[NIT]],J:J) -> 1.00511065e+10 | G15: 800215807 | H15: INSTITUTO NACIONAL DE VIAS | I15: 1494039922 | J15: 2.413556316e+10
A16: 800141397 | B16: POLICÍA NACIONAL - GESTIÓN GENERAL | C16: =SUMIF(G:J,Tabla3[[#This Row],[NIT]],I:I) -> 1.042629963e+11 | D16: =SUMIF(G:J,Tabla3[[#This Row],[NIT]],J:J) -> 1.2910761e+11 | G16: 800250881 | H16: SUPERINTENDENCIA DE SERVICIOS PUBLICOS | I16: 8167352420 | J16: 64112487.67
A17: 800144829 | B17: UNIVERSIDADES PÚBLICAS - UNIVERSIDAD COLEGIO MAYOR DE CUNDINAMARCA | C17: =SUMIF(G:J,Tabla3[[#This Row],[NIT]],I:I) -> 0 | D17: =SUMIF(G:J,Tabla3[[#This Row],[NIT]],J:J) -> 0 | G17: 800252683 | H17: FDO DE BIENESTAR SOCIAL DE LA CONTRALORI | I17: 0 | J17: 43045572.77
A18: 800150861 | B18: INSTITUTO NACIONAL DE MEDICINA LEGAL Y CIENCIAS FORENSES | C18: =SUMIF(G:J,Tabla3[[#This Row],[NIT]],I:I) -> 246281036 | D18: =SUMIF(G:J,Tabla3[[#This Row],[NIT]],J:J) -> 162474682 | G18: 800252843 | H18: CORPORACION AUTONOMA REGIONAL DE BOYACA CORPOBOYAC | I18: 150854083 | J18: 1170996349
A19: 800152783 | B19: FISCALÍA GENERAL DE LA NACIÓN - GESTIÓN GENERAL | C19: =SUMIF(G:J,Tabla3[[#This Row],[NIT]],I:I) -> 586697304 | D19: =SUMIF(G:J,Tabla3[[#This Row],[NIT]],J:J) -> 1.254663787e+11 | G19: 800252844 | H19: CORPORACION PARA EL DESARROLLO SOSTENIBLE DEL SUR | I19: 31499474 | J19: 1251919556
A20: 800163130 | B20: UNIVERSIDADES PÚBLICAS - UNIVERSIDAD FRANCISCO DE PAULA SANTANDER SECCIONAL OCAÑA | C20: =SUMIF(G:J,Tabla3[[#This Row],[NIT]],I:I) -> 0 | D20: =SUMIF(G:J,Tabla3[[#This Row],[NIT]],J:J) -> 0 | G20: 800254453 | H20: CORPORACION AUTONOMA REGIONAL DEL CANAL DEL DIQUE | I20: 0 | J20: 3223067531
A21: 800170433 | B21: SUPERINTENDENCIA DE PUERTOS Y TRANSPORTE | C21: =SUMIF(G:J,Tabla3[[#This Row],[NIT]],I:I) -> 0 | D21: =SUMIF(G:J,Tabla3[[#This Row],[NIT]],J:J) -> 2113598632 | G21: 800255580 | H21: CORPORACION AUTONOMA REGIONAL DEL ALTO MAGDALENA | I21: 0 | J21: 409764081.3
A22: 800173719 | B22: INSTITUTO TOLIMENSE DE FORMACIÓN TÉCNICA PROFESIONAL | C22: =SUMIF(G:J,Tabla3[[#This Row],[NIT]],I:I) -> 0 | D22: =SUMIF(G:J,Tabla3[[#This Row],[NIT]],J:J) -> 0 | G22: 804000292 | H22: CORPORACION AUTONOMA REGIONAL DE SANTANDER CAS | I22: 0 | J22: 2046808406
A23: 800176089 | B23: SUPERINTENDENCIA DE INDUSTRIA Y COMERCIO | C23: =SUMIF(G:J,Tabla3[[#This Row],[NIT]],I:I) -> 0 | D23: =SUMIF(G:J,Tabla3[[#This Row],[NIT]],J:J) -> 2094319880 | G23: 811000231 | H23: CORPORACION AUTONOMA REGIONAL DEL CENTRO ANTIOQUIA | I23: 0 | J23: 8720701592
A24: 800185929 | B24: DIRECCIÓN NACIONAL DEL DERECHO DE AUTOR | C24: =SUMIF(G:J,Tabla3[[#This Row],[NIT]],I:I) -> 0 | D24: =SUMIF(G:J,Tabla3[[#This Row],[NIT]],J:J) -> 0 | G24: 823000077 | H24: CORPOMOJANA | I24: 0 | J24: 47396347.49
A25: 800186061 | B25: DEFENSORÍA DEL PUEBLO | C25: =SUMIF(G:J,Tabla3[[#This Row],[NIT]],I:I) -> 548224274 | D25: =SUMIF(G:J,Tabla3[[#This Row],[NIT]],J:J) -> 512009075.2 | G25: 830000167 | H25: INSTITUTO NACIONAL DE VIGILANCIA DE MEDICAMENTOS Y | I25: 45033934 | J25: 4070698552
A26: 800197268 | B26: UNIDAD ADMINISTRATIVA ESPECIAL DIRECCIÓN DE IMPUESTOS Y ADUANAS NACIONALES | C26: =SUMIF(G:J,Tabla3[[#This Row],[NIT]],I:I) -> 20702608073 | D26: =SUMIF(G:J,Tabla3[[#This Row],[NIT]],J:J) -> 5.236672531e+10 | G26: 830000212 | H26: COMISION DE REGULACION DE AGUA POTABLE Y | I26: 748437196.9 | J26: 435695172.1
A27: 800213389 | B27: ICBF | C27: =SUMIF(G:J,Tabla3[[#This Row],[NIT]],I:I) -> 6722426661 | D27: =SUMIF(G:J,Tabla3[[#This Row],[NIT]],J:J) -> 4570726035 | G27: 830000282 | H27: UNIDAD DE PLANEACION MINERO ENERGETICA | I27: 0 | J27: 187642351.6
A28: 800215546 | B28: INSTITUTO NACIONAL PENITENCIARIO Y CARCELARIO - INPEC | C28: =SUMIF(G:J,Tabla3[[#This Row],[NIT]],I:I) -> 0 | D28: =SUMIF(G:J,Tabla3[[#This Row],[NIT]],J:J) -> 2.726927137e+10 | G28: 830000602 | H28: IINSTITUTO DE HIDROLOGIA METEOROLOGIA Y ESTUDIOS A | I28: 0 | J28: 266543692.5
A29: 800215807 | B29: INSTITUTO NACIONAL DE VÍAS | C29: =SUMIF(G:J,Tabla3[[#This Row],[NIT]],I:I) -> 1494039922 | D29: =SUMIF(G:J,Tabla3[[#This Row],[NIT]],J:J) -> 2.413556316e+10 | G29: 830002593 | H29: COMISION DE REGULACION DE COMUNICACIONES | I29: 0 | J29: 13905044.02
A30: 800217123 | B30: SUPERINTENDENCIA DE VIGILANCIA Y SEGURIDAD PRIVADA | C30: =SUMIF(G:J,Tabla3[[#This Row],[NIT]],I:I) -> 0 | D30: =SUMIF(G:J,Tabla3[[#This Row],[NIT]],J:J) -> 0 | G30: 830016624 | H30: PARQUES NACIONALES NATURALES DE COLOMBIA | I30: 0 | J30: 203407903.9
A31: 800225340 | B31: UNIVERSIDADES PÚBLICAS - UNIVERSIDAD MILITAR NUEVA GRANADA | C31: =SUMIF(G:J,Tabla3[[#This Row],[NIT]],I:I) -> 0 | D31: =SUMIF(G:J,Tabla3[[#This Row],[NIT]],J:J) -> 0 | G31: 830040256 | H31: HOSPITAL MILITAR CENTRAL | I31: 0 | J31: 1797787962
A32: 800230729 | B32: COMANDO GENERAL | C32: =SUMIF(G:J,Tabla3[[#This Row],[NIT]],I:I) -> 0 | D32: =SUMIF(G:J,Tabla3[[#This Row],[NIT]],J:J) -> 0 | G32: 830053043 | H32: SUPERINTENDENCIA DE ECONOMIA SOLIDARIA | I32: 0 | J32: 114605695.5
A33: 800237214 | B33: CORPORACIÓN NACIONAL PARA LA RECONSTRUCCIÓN DE LA CUENCA DEL RIO PÁEZ Y ZONAS ALEDAÑAS NASA KI WE | C33: =SUMIF(G:J,Tabla3[[#This Row],[NIT]],I:I) -> 0 | D33: =SUMIF(G:J,Tabla3[[#This Row],[NIT]],J:J) -> 0 | G33: 830065741 | H33: AUDITORIA GENERAL DE LA NACION | I33: 0 | J33: 50639486.28
A34: 800248004 | B34: INSTITUTO TÉCNICO NACIONAL DE COMERCIO "SIMÓN RODRÍGUEZ" DE CALI | C34: =SUMIF(G:J,Tabla3[[#This Row],[NIT]],I:I) -> 0 | D34: =SUMIF(G:J,Tabla3[[#This Row],[NIT]],J:J) -> 0 | G34: 830114475 | H34: MINISTERIO DEL INTERIOR | I34: 237022946 | J34: 9420558799
A35: 800250881 | B35: SUPER DE SERVICIOS PÚBLICOS DOMICILIARIO | C35: =SUMIF(G:J,Tabla3[[#This Row],[NIT]],I:I) -> 8167352420 | D35: =SUMIF(G:J,Tabla3[[#This Row],[NIT]],J:J) -> 64112487.67 | G35: 830115226 | H35: MINISTERIO DEL TRABAJO | I35: 0 | J35: 3475996953
A36: 800250984 | B36: SUPERINTENDENCIA DE SERVICIOS PÚBLICOS DOMICILIARIOS | C36: =SUMIF(G:J,Tabla3[[#This Row],[NIT]],I:I) -> 0 | D36: =SUMIF(G:J,Tabla3[[#This Row],[NIT]],J:J) -> 0 | G36: 830115297 | H36: MINISTERIO DE COMERCIO INDUSTRIA Y TURISMO | I36: 0 | J36: 2056662070
A37: 800252037 | B37: CORPORACIÓN AUTÓNOMA REGIONAL DE CHIVOR (CORPOCHIVOR) | C37: =SUMIF(G:J,Tabla3[[#This Row],[NIT]],I:I) -> 0 | D37: =SUMIF(G:J,Tabla3[[#This Row],[NIT]],J:J) -> 0 | G37: 830115395 | H37: MINISTERIO DE AMBIENTE Y DESARROLLO SOSTENIBLE | I37: 397097077.2 | J37: 7347111662
A38: 800252683 | B38: FONDO DE BIENESTAR SOCIAL DE LA CONTRALORÍA GENERAL DE LA REPÚBLICA | C38: =SUMIF(G:J,Tabla3[[#This Row],[NIT]],I:I) -> 0 | D38: =SUMIF(G:J,Tabla3[[#This Row],[NIT]],J:J) -> 43045572.77 | G38: 830125996 | H38: AGENCIA NACIONAL DE INFRAESTRUCTURA | I38: 0 | J38: 2.649204113e+10
A39: 800252843 | B39: CORPORACIÓN AUTÓNOMA REGIONAL DE BOYACÁ (CORPOBOYACÁ) | C39: =SUMIF(G:J,Tabla3[[#This Row],[NIT]],I:I) -> 150854083 | D39: =SUMIF(G:J,Tabla3[[#This Row],[NIT]],J:J) -> 1170996349 | G39: 830127607 | H39: AGENCIA NACIONAL DE HIDROCARBUROS ANH | I39: 2292520330 | J39: 6278784683
A40: 800252844 | B40: CORPORACIÓN PARA EL DESARROLLO SOSTENIBLE DEL SUR DE LA AMAZONIA (CORPOAMAZONIA) | C40: =SUMIF(G:J,Tabla3[[#This Row],[NIT]],I:I) -> 31499474 | D40: =SUMIF(G:J,Tabla3[[#This Row],[NIT]],J:J) -> 1251919556 | G40: 832000283 | H40: CORPORACION AUTONOMA REGIONAL DE LA ORINOQUIA CORP | I40: 0 | J40: 143460243.6
A41: 800254453 | B41: CORPORACIÓN AUTÓNOMA REGIONAL DEL CANAL DEL DIQUE (CARDIQUE) | C41: =SUMIF(G:J,Tabla3[[#This Row],[NIT]],I:I) -> 0 | D41: =SUMIF(G:J,Tabla3[[#This Row],[NIT]],J:J) -> 3223067531 | G41: 838000009 | H41: CORP PARA DES SOSTENIB DEL NOR/ORI AMAZO | I41: 0 | J41: 227508865.1
A42: 800255580 | B42: CORPORACIÓN AUTÓNOMA REGIONAL DEL ALTO MAGDALENA (CAM) | C42: =SUMIF(G:J,Tabla3[[#This Row],[NIT]],I:I) -> 0 | D42: =SUMIF(G:J,Tabla3[[#This Row],[NIT]],J:J) -> 409764081.3 | G42: 860015971 | H42: INSTITUTO NACIONAL PARA CIEGOS | I42: 0 | J42: 9227602.32
A43: 802000339 | B43: CORPORACIÓN AUTÓNOMA REGIONAL DEL ATLÁNTICO (CRA) | C43: =SUMIF(G:J,Tabla3[[#This Row],[NIT]],I:I) -> 0 | D43: =SUMIF(G:J,Tabla3[[#This Row],[NIT]],J:J) -> 0 | G43: 860016951 | H43: CLUB MILITAR | I43: 0 | J43: 220570490.2
A44: 804000292 | B44: CORPORACIÓN AUTÓNOMA REGIONAL DE SANTANDER (CAS) | C44: =SUMIF(G:J,Tabla3[[#This Row],[NIT]],I:I) -> 0 | D44: =SUMIF(G:J,Tabla3[[#This Row],[NIT]],J:J) -> 2046808406 | G44: 860020227 | H44: FONDO ROTATORIO DE LA POLICIA NACIONAL | I44: 0 | J44: 169706420.5
A45: 806000327 | B45: CORPORACIÓN AUTÓNOMA REGIONAL DEL SUR DE BOLÍVAR (CSB) | C45: =SUMIF(G:J,Tabla3[[#This Row],[NIT]],I:I) -> 0 | D45: =SUMIF(G:J,Tabla3[[#This Row],[NIT]],J:J) -> 0 | G45: 860041247 | H45: INSTITUTO DE CASAS FISCALES DEL EJERCITO | I45: 0 | J45: 42359773.85
A46: 811000231 | B46: CORPORACIÓN AUTÓNOMA REGIONAL DEL CENTRO DE ANTIOQUIA (CORANTIOQUIA) | C46: =SUMIF(G:J,Tabla3[[#This Row],[NIT]],I:I) -> 0 | D46: =SUMIF(G:J,Tabla3[[#This Row],[NIT]],J:J) -> 8720701592 | G46: 860062187 | H46: SUPERINTENDENCIA NACIONAL DE SALUD | I46: 1132585912 | J46: 1.047365738e+10
A47: 817002466 | B47: UNIVERSIDADES PÚBLICAS - UNIVERSIDAD AUTÓNOMA INDÍGENA INTERCULTURAL UAIIN CRIC | C47: =SUMIF(G:J,Tabla3[[#This Row],[NIT]],I:I) -> 0 | D47: =SUMIF(G:J,Tabla3[[#This Row],[NIT]],J:J) -> 0 | G47: 860511071 | H47: FONDO ROTATORIO DEL MINISTERIO DE RELACIONES EXTER | I47: 0 | J47: 3990440765
A48: 822000091 | B48: CORPORACIÓN PARA EL DESARROLLO SOSTENIBLE DEL ÁREA DE MANEJO ESPECIAL LA MACARENA (CORMACARENA) | C48: =SUMIF(G:J,Tabla3[[#This Row],[NIT]],I:I) -> 0 | D48: =SUMIF(G:J,Tabla3[[#This Row],[NIT]],J:J) -> 0 | G48: 890000447 | H48: CORPORACION AUTONOMA REGIONAL DEL QUINDIO | I48: 0 | J48: 418745477.1
A49: 823000050 | B49: CORPORACIÓN AUTÓNOMA REGIONAL DE SUCRE (CARSUCRE) | C49: =SUMIF(G:J,Tabla3[[#This Row],[NIT]],I:I) -> 0 | D49: =SUMIF(G:J,Tabla3[[#This Row],[NIT]],J:J) -> 0 | G49: 890026982 | H49: FONDO NACIONAL DE VIVIENDA FONDOS ESPECI | I49: 0 | J49: 969600283.5
A50: 823000077 | B50: CORPORACIÓN PARA EL DESARROLLO SOSTENIBLE DE LA MOJANA Y EL SAN JORGE (CORPOMOJANA) | C50: =SUMIF(G:J,Tabla3[[#This Row],[NIT]],I:I) -> 0 | D50: =SUMIF(G:J,Tabla3[[#This Row],[NIT]],J:J) -> 47396347.49 | G50: 890505253 | H50: CORPORACION AUTONOMA REGIONAL DE LA FRONTERA NOROR | I50: 0 | J50: 4193679219
A51: 827000031 | B51: CORPORACIÓN PARA EL DESARROLLO SOSTENIBLE DEL ARCHIPIÉLAGO DE SAN ANDRES, PROVIDENCIA Y SANTA CATALINA (CORALINA) | C51: =SUMIF(G:J,Tabla3[[#This Row],[NIT]],I:I) -> 0 | D51: =SUMIF(G:J,Tabla3[[#This Row],[NIT]],J:J) -> 0 | G51: 890704536 | H51: CORPORACION AUTONOMA REGIONAL DEL TOLIMA | I51: 0 | J51: 7724631688
A52: 830000167 | B52: INSTITUTO NACIONAL DE VIGILANCIA DE MEDICAMENTOS Y ALIMENTOS - INVIMA | C52: =SUMIF(G:J,Tabla3[[#This Row],[NIT]],I:I) -> 45033934 | D52: =SUMIF(G:J,Tabla3[[#This Row],[NIT]],J:J) -> 4070698552 | G52: 890803005 | H52: CORPORACION AUTONOMA REGIONAL DE CALDAS CORPOCALDA | I52: 0 | J52: 467608279.5
A53: 830000212 | B53: COMISIÓN DE REGULACIÓN DE AGUA POTABLE Y SANEAMIENTO BÁSICO CRA | C53: =SUMIF(G:J,Tabla3[[#This Row],[NIT]],I:I) -> 748437196.9 | D53: =SUMIF(G:J,Tabla3[[#This Row],[NIT]],J:J) -> 435695172.1 | G53: 890907748 | H53: CORPORACION PARA EL DESARROLLO SOSTENIBLE DEL URAB | I53: 0 | J53: 1494354994
A54: 830000282 | B54: UNIDAD DE PLANEACION MINERO ENERGÉTICA - UPME | C54: =SUMIF(G:J,Tabla3[[#This Row],[NIT]],I:I) -> 0 | D54: =SUMIF(G:J,Tabla3[[#This Row],[NIT]],J:J) -> 187642351.6 | G54: 890999057 | H54: SUPERINTENDENCIA FINANCIERA DE COLOMBIA | I54: 0 | J54: 118686620.4
A55: 830000602 | B55: INSTITUTO DE HIDROLOGÍA, METEOROLOGÍA Y ESTUDIOS AMBIENTALES- IDEAM | C55: =SUMIF(G:J,Tabla3[[#This Row],[NIT]],I:I) -> 0 | D55: =SUMIF(G:J,Tabla3[[#This Row],[NIT]],J:J) -> 266543692.5 | G55: 891000627 | H55: CORPORACION AUTONOMA REGIONAL DE LOS VALLES DEL SI | I55: 0 | J55: 1962569823
A56: 830002593 | B56: UNIDAD ADMINISTRATIVA ESPECIAL COMISIÓN DE REGULACIÓN DE COMUNICACIONES | C56: =SUMIF(G:J,Tabla3[[#This Row],[NIT]],I:I) -> 0 | D56: =SUMIF(G:J,Tabla3[[#This Row],[NIT]],J:J) -> 13905044.02 | G56: 891410354 | H56: CORP AUTONOMA REGIONAL DE RISARALDA | I56: 0 | J56: 677599078.6
A57: 830016624 | B57: PARQUES NACIONALES NATURALES DE COLOMBIA | C57: =SUMIF(G:J,Tabla3[[#This Row],[NIT]],I:I) -> 0 | D57: =SUMIF(G:J,Tabla3[[#This Row],[NIT]],J:J) -> 203407903.9 | G57: 891501885 | H57: CORPORACION AUTONOMA REGIONAL DEL CAUCA C. R. C. | I57: 0 | J57: 589582422
A58: 830025267 | B58: FONDO NACIONAL AMBIENTAL - GESTIÓN GENERAL | C58: =SUMIF(G:J,Tabla3[[#This Row],[NIT]],I:I) -> 0 | D58: =SUMIF(G:J,Tabla3[[#This Row],[NIT]],J:J) -> 0 | G58: 892301483 | H58: CORPORACION AUTONOMA REGIONAL DEL CESAR | I58: 0 | J58: 838533994.5
A59: 830025406 | B59: UNIDAD ADMINISTRATIVA ESPECIAL CONTADURÍA GENERAL DE LA NACIÓN | C59: =SUMIF(G:J,Tabla3[[#This Row],[NIT]],I:I) -> 0 | D59: =SUMIF(G:J,Tabla3[[#This Row],[NIT]],J:J) -> 0 | G59: 899999003 | H59: MINISTERIO DE DEFENSA NACIONAL | I59: 1.574978081e+11 | J59: 1.993350491e+11
A60: 830027904 | B60: DIRECCIÓN GENERAL MARÍTIMA (DIMAR) | C60: =SUMIF(G:J,Tabla3[[#This Row],[NIT]],I:I) -> 0 | D60: =SUMIF(G:J,Tabla3[[#This Row],[NIT]],J:J) -> 0 | G60: 899999007 | H60: SUPERINTENDENCIA DE NOTARIADO Y REGISTRO | I60: 3542647196 | J60: 1.038355891e+10
A61: 830034348 | B61: MINISTERIO DE CULTURA - GESTIÓN GENERAL | C61: =SUMIF(G:J,Tabla3[[#This Row],[NIT]],I:I) -> 0 | D61: =SUMIF(G:J,Tabla3[[#This Row],[NIT]],J:J) -> 0 | G61: 899999011 | H61: DEPARTAMENTO NACIONAL DE PLANEACIÓN | I61: 458997921 | J61: 1.650887304e+10
A62: 830040256 | B62: HOSPITAL MILITAR | C62: =SUMIF(G:J,Tabla3[[#This Row],[NIT]],I:I) -> 0 | D62: =SUMIF(G:J,Tabla3[[#This Row],[NIT]],J:J) -> 1797787962 | G62: 899999022 | H62: MINISTERIO DE MINAS Y ENERGIA | I62: 0 | J62: 1.373881968e+10
A63: 830041314 | B63: POLICÍA NACIONAL - SALUD | C63: =SUMIF(G:J,Tabla3[[#This Row],[NIT]],I:I) -> 0 | D63: =SUMIF(G:J,Tabla3[[#This Row],[NIT]],J:J) -> 0 | G63: 899999028 | H63: MINISTERIO DE AGRICULTURA Y DESARROLLO RURAL | I63: 0 | J63: 4114455901
A64: 830053043 | B64: SUPERINTENDENCIA DE LA ECONOMÍA SOLIDARIA | C64: =SUMIF(G:J,Tabla3[[#This Row],[NIT]],I:I) -> 0 | D64: =SUMIF(G:J,Tabla3[[#This Row],[NIT]],J:J) -> 114605695.5 | G64: 899999042 | H64: MINISTERIO DE RELACIONES EXTERIORES | I64: 783477154 | J64: 176281485.7
A65: 830065741 | B65: AUDITORÍA GENERAL DE LA REPÚBLICA - GESTIÓN GENERAL | C65: =SUMIF(G:J,Tabla3[[#This Row],[NIT]],I:I) -> 0 | D65: =SUMIF(G:J,Tabla3[[#This Row],[NIT]],J:J) -> 50639486.28 | G65: 899999048 | H65: INSTITUTO DE PLANIFICACION Y PROMOCION DE SOLUCION | I65: 0 | J65: 1854135204
A66: 830067892 | B66: INSTITUTO COLOMBIANO DE ANTROPOLOGÍA E HISTORIA | C66: =SUMIF(G:J,Tabla3[[#This Row],[NIT]],I:I) -> 0 | D66: =SUMIF(G:J,Tabla3[[#This Row],[NIT]],J:J) -> 0 | G66: 899999053 | H66: MINISTERIO DE TECNOLOGÍAS DE LA INFORMACIÓN Y LAS | I66: 0 | J66: 8498845114
A67: 830068074 | B67: UNIDAD DE INFORMACIÓN Y ANÁLISIS FINANCIERO | C67: =SUMIF(G:J,Tabla3[[#This Row],[NIT]],I:I) -> 0 | D67: =SUMIF(G:J,Tabla3[[#This Row],[NIT]],J:J) -> 0 | G67: 899999054 | H67: ESCUELA SUPERIOR DE ADMINISTRACION PUBLICA | I67: 0 | J67: 126575959.2
A68: 830079479 | B68: COMPUTADORES PARA EDUCAR CPE | C68: =SUMIF(G:J,Tabla3[[#This Row],[NIT]],I:I) -> 0 | D68: =SUMIF(G:J,Tabla3[[#This Row],[NIT]],J:J) -> 0 | G68: 899999055 | H68: MINISTERIO DE TRANSPORTE | I68: 0 | J68: 2507307861
A69: 830085129 | B69: FONDO SOCIAL DE VIVIENDA DE LA REGISTRADURÍA NACIONAL DEL ESTADO CIVIL | C69: =SUMIF(G:J,Tabla3[[#This Row],[NIT]],I:I) -> 0 | D69: =SUMIF(G:J,Tabla3[[#This Row],[NIT]],J:J) -> 0 | G69: 899999059 | H69: UNIDAD ADMINISTRATIVA ESPECIAL DE AERONAUTICA CIVI | I69: 0 | J69: 2351568041
A70: 830114475 | B70: MINISTERIO DEL INTERIOR - GESTIÓN GENERAL | C70: =SUMIF(G:J,Tabla3[[#This Row],[NIT]],I:I) -> 237022946 | D70: =SUMIF(G:J,Tabla3[[#This Row],[NIT]],J:J) -> 9420558799 | G70: 899999059 | H70: UNIDAD ADMINISTRATIVA ESPECIAL DE AERONAUTICA CIVI | I70: 0 | J70: 3884888965
A71: 830114475 | B71: DIRECCIÓN DE LA AUTORIDAD NACIONAL DE CONSULTA PREVIA | C71: =SUMIF(G:J,Tabla3[[#This Row],[NIT]],I:I) -> 237022946 | D71: =SUMIF(G:J,Tabla3[[#This Row],[NIT]],J:J) -> 9420558799 | G71: 899999067 | H71: CONTRALORIA GENERAL DE LA REPUBLICA | I71: 0 | J71: 2752942057
A72: 830115226 | B72: MINISTERIO DEL TRABAJO - GESTIÓN GENERAL | C72: =SUMIF(G:J,Tabla3[[#This Row],[NIT]],I:I) -> 0 | D72: =SUMIF(G:J,Tabla3[[#This Row],[NIT]],J:J) -> 3475996953 | G72: 899999069 | H72: INSTITUTO COLOMBIANO AGROPECUARIO ICA | I72: 368469108 | J72: 95130.91
A73: 830115297 | B73: DIRECCIÓN GENERAL DE COMERCIO EXTERIOR | C73: =SUMIF(G:J,Tabla3[[#This Row],[NIT]],I:I) -> 0 | D73: =SUMIF(G:J,Tabla3[[#This Row],[NIT]],J:J) -> 2056662070 | G73: 899999073 | H73: CAJA DE SUELDOS DE RETIRO POLICIA NACIONAL | I73: 0 | J73: 2.005464546e+10
A74: 830115297 | B74: MINISTERIO DE COMERCIO INDUSTRIA TURISMO - GESTIÓN GENERAL | C74: =SUMIF(G:J,Tabla3[[#This Row],[NIT]],I:I) -> 0 | D74: =SUMIF(G:J,Tabla3[[#This Row],[NIT]],J:J) -> 2056662070 | G74: 899999083 | H74: DEPARTAMENTO ADMINISTRATIVO DE LA PRESIDENCIA DE L | I74: 196201561.1 | J74: 1003670874
A75: 830115395 | B75: MINISTERIO DE AMBIENTE Y DESARROLLO SOSTENIBLE - GESTIÓN GENERAL | C75: =SUMIF(G:J,Tabla3[[#This Row],[NIT]],I:I) -> 397097077.2 | D75: =SUMIF(G:J,Tabla3[[#This Row],[NIT]],J:J) -> 7347111662 | G75: 899999086 | H75: SUPERINTENDENCIA DE SOCIEDADES | I75: 0 | J75: 823931659.2
A76: 830121208 | B76: FONDO NACIONAL DE VIVIENDA - FONVIVIENDA | C76: =SUMIF(G:J,Tabla3[[#This Row],[NIT]],I:I) -> 0 | D76: =SUMIF(G:J,Tabla3[[#This Row],[NIT]],J:J) -> 0 | G76: 899999090 | H76: MINISTERIO DE HACIENDA Y CREDITO PUBLICO | I76: 0 | J76: 157824652.8
A77: 830125996 | B77: AGENCIA NACIONAL DE INFRAESTRUCTURA | C77: =SUMIF(G:J,Tabla3[[#This Row],[NIT]],I:I) -> 0 | D77: =SUMIF(G:J,Tabla3[[#This Row],[NIT]],J:J) -> 2.649204113e+10 | G77: 899999098 | H77: CAMARA DE REPRESENTANTES | I77: 55358723 | J77: 60027154.61
A78: 830127607 | B78: AGENCIA NACIONAL DE HIDROCARBUROS - ANH | C78: =SUMIF(G:J,Tabla3[[#This Row],[NIT]],I:I) -> 2292520330 | D78: =SUMIF(G:J,Tabla3[[#This Row],[NIT]],J:J) -> 6278784683 | G78: 899999103 | H78: SENADO DE LA REPUBLICA | I78: 397726941.9 | J78: 3504390822
A79: 832000171 | B79: CORPORACIÓN AUTÓNOMA REGIONAL DEL GUAVIO (CORPOGUAVIO) | C79: =SUMIF(G:J,Tabla3[[#This Row],[NIT]],I:I) -> 0 | D79: =SUMIF(G:J,Tabla3[[#This Row],[NIT]],J:J) -> 0 | G79: 899999118 | H79: CAJA DE RETIRO DE LAS FUERZAS MILITARES | I79: 0 | J79: 1.355117086e+10
A80: 832000283 | B80: CORPORACIÓN AUTÓNOMA REGIONAL DE LA ORINOQUIA (CORPORINOQUIA) | C80: =SUMIF(G:J,Tabla3[[#This Row],[NIT]],I:I) -> 0 | D80: =SUMIF(G:J,Tabla3[[#This Row],[NIT]],J:J) -> 143460243.6 | G80: 899999119 | H80: PROCURADURIA GENERAL DE LA NACION | I80: 632263030 | J80: 1.877387593e+10
A81: 835000300 | B81: UNIVERSIDADES PÚBLICAS - UNIVERSIDAD DEL PACIFICO | C81: =SUMIF(G:J,Tabla3[[#This Row],[NIT]],I:I) -> 0 | D81: =SUMIF(G:J,Tabla3[[#This Row],[NIT]],J:J) -> 0 | G81: 899999162 | H81: AGENCIA LOGISTICA DE LAS FUERZAS MILITARES | I81: 428939357.6 | J81: 161198424.6
A82: 838000009 | B82: CORPORACIÓN PARA EL DESARROLLO SOSTENIBLE DEL NORTE Y ORIENTE DE LA AMAZONIA (CDA) | C82: =SUMIF(G:J,Tabla3[[#This Row],[NIT]],I:I) -> 0 | D82: =SUMIF(G:J,Tabla3[[#This Row],[NIT]],J:J) -> 227508865.1 | G82: 899999294 | H82: SERVICIO GEOLOGICO COLOMBIANO - SGC | I82: 0 | J82: 264582107.1
A83: 844002071 | B83: UNIVERSIDADES PÚBLICAS - UNIVERSIDAD INTERNACIONAL DEL TROPICO AMERICANO | C83: =SUMIF(G:J,Tabla3[[#This Row],[NIT]],I:I) -> 0 | D83: =SUMIF(G:J,Tabla3[[#This Row],[NIT]],J:J) -> 0 | G83: 899999296 | H83: MINISTERIO DE CIENCIA, TECNOLOGIA E INNOVACION | I83: 0 | J83: 176531515
A84: 860015971 | B84: INSTITUTO NACIONAL PARA CIEGOS (INCI) | C84: =SUMIF(G:J,Tabla3[[#This Row],[NIT]],I:I) -> 0 | D84: =SUMIF(G:J,Tabla3[[#This Row],[NIT]],J:J) -> 9227602.32 | G84: 899999306 | H84: MINISTERIO DEL DEPORTE | I84: 34064856 | J84: 505280980.1
A85: 860016627 | B85: INSTITUTO NACIONAL PARA SORDOS (INSOR) | C85: =SUMIF(G:J,Tabla3[[#This Row],[NIT]],I:I) -> 0 | D85: =SUMIF(G:J,Tabla3[[#This Row],[NIT]],J:J) -> 0 | G85: 899999403 | H85: INSTITUTO NACIONAL DE SALUD | I85: 0 | J85: 123074025.9
A86: 860016951 | B86: CLUB MILITAR DE OFICIALES | C86: =SUMIF(G:J,Tabla3[[#This Row],[NIT]],I:I) -> 0 | D86: =SUMIF(G:J,Tabla3[[#This Row],[NIT]],J:J) -> 220570490.2 | G86: 899999717 | H86: DEFENSA CIVIL COLOMBIANA | I86: 0 | J86: 429435491
A87: 860020227 | B87: FONDO ROTATORIO DE LA POLICÍA - GESTIÓN GENERAL | C87: =SUMIF(G:J,Tabla3[[#This Row],[NIT]],I:I) -> 0 | D87: =SUMIF(G:J,Tabla3[[#This Row],[NIT]],J:J) -> 169706420.5 | G87: 899999734 | H87: FONDO DE PREVISION SOCIAL DEL CONGRESO DE LA REPUB | I87: 935657852 | J87: 1176842766
A88: 860041247 | B88: INSTITUTO CASAS FISCALES DEL EJÉRCITO | C88: =SUMIF(G:J,Tabla3[[#This Row],[NIT]],I:I) -> 0 | D88: =SUMIF(G:J,Tabla3[[#This Row],[NIT]],J:J) -> 42359773.85 | G88: 900003409 | H88: COMISION NACIONAL DEL SERVICIO CIVIL | I88: 75829826.54 | J88: 414243181.3
A89: 860062187 | B89: SUPERINTENDENCIA NACIONAL DE SALUD | C89: =SUMIF(G:J,Tabla3[[#This Row],[NIT]],I:I) -> 1132585912 | D89: =SUMIF(G:J,Tabla3[[#This Row],[NIT]],J:J) -> 1.047365738e+10 | G89: 900034993 | H89: COMISION DE REGULACION DE ENERGIA Y GAS | I89: 2873341054 | J89: 6377111234
A90: 860402193 | B90: INSTITUTO NACIONAL DE FORMACIÓN TÉCNICA PROFESIONAL DE SAN JUAN DEL CESAR | C90: =SUMIF(G:J,Tabla3[[#This Row],[NIT]],I:I) -> 0 | D90: =SUMIF(G:J,Tabla3[[#This Row],[NIT]],J:J) -> 0 | G90: 900039533 | H90: DEPARTAMENTO ADMINISTRATIVO PARA LA PROSPERIDAD SO | I90: 0 | J90: 5180238029
A91: 860503600 | B91: SUPERINTENDENCIA DE SUBSIDIO FAMILIAR | C91: =SUMIF(G:J,Tabla3[[#This Row],[NIT]],I:I) -> 0 | D91: =SUMIF(G:J,Tabla3[[#This Row],[NIT]],J:J) -> 0 | G91: 900180739 | H91: UNIDAD ADMINISTRATIVA ESPECIAL JUNTA CENTRAL DE CO | I91: 82293935 | J91: 370642185
A92: 860511071 | B92: FONDO ROTATORIO DEL MINISTERIO DE RELACIONES EXTERIORES | C92: =SUMIF(G:J,Tabla3[[#This Row],[NIT]],I:I) -> 0 | D92: =SUMIF(G:J,Tabla3[[#This Row],[NIT]],J:J) -> 3990440765 | G92: 900334265 | H92: AGENCIA NACIONAL DEL ESPECTRO | I92: 0 | J92: 82151805.36
A93: 860512780 | B93: UNIVERSIDADES PÚBLICAS - UNIVERSIDAD NACIONAL ABIERTA Y A DISTANCIA UNAD | C93: =SUMIF(G:J,Tabla3[[#This Row],[NIT]],I:I) -> 0 | D93: =SUMIF(G:J,Tabla3[[#This Row],[NIT]],J:J) -> 0 | G93: 900373913 | H93: UNIDAD ADMINISTRATIVA ESPECIAL DE GESTION PENSIONA | I93: 0 | J93: 244899817.6
A94: 860523694 | B94: ESCUELA TECNOLÓGICA INSTITUTO TÉCNICO CENTRAL | C94: =SUMIF(G:J,Tabla3[[#This Row],[NIT]],I:I) -> 0 | D94: =SUMIF(G:J,Tabla3[[#This Row],[NIT]],J:J) -> 0 | G94: 900384997 | H94: UNIDAD ADMINISTRATIVA ESPECIAL DE LA JUSTICIA PENA | I94: 0 | J94: 111002384.2
A95: 890000432 | B95: UNIVERSIDADES PÚBLICAS - UNIVERSIDAD DEL QUINDIO | C95: =SUMIF(G:J,Tabla3[[#This Row],[NIT]],I:I) -> 0 | D95: =SUMIF(G:J,Tabla3[[#This Row],[NIT]],J:J) -> 0 | G95: 900450205 | H95: FONDO ADAPTACION | I95: 0 | J95: 1994059348
A96: 890000447 | B96: CORPORACIÓN AUTÓNOMA REGIONAL DEL QUINDÍO (CRQ) | C96: =SUMIF(G:J,Tabla3[[#This Row],[NIT]],I:I) -> 0 | D96: =SUMIF(G:J,Tabla3[[#This Row],[NIT]],J:J) -> 418745477.1 | G96: 900457461 | H96: MINISTERIO DE JUSTICIA Y DEL DERECHO | I96: 445513490 | J96: 837533465.6
A97: 890026982 | B97: FONVIVIENDA | C97: =SUMIF(G:J,Tabla3[[#This Row],[NIT]],I:I) -> 0 | D97: =SUMIF(G:J,Tabla3[[#This Row],[NIT]],J:J) -> 969600283.5 | G97: 900463725 | H97: MINISTERIO DE VIVIENDA CIUDAD Y TERRITORIO | I97: 0 | J97: 579552384.9
A98: 890102257 | B98: UNIVERSIDADES PÚBLICAS - UNIVERSIDAD DEL ATLANTICO | C98: =SUMIF(G:J,Tabla3[[#This Row],[NIT]],I:I) -> 0 | D98: =SUMIF(G:J,Tabla3[[#This Row],[NIT]],J:J) -> 0 | G98: 900467239 | H98: UAE AUTORIDAD NACIONAL DE LICENCIAS AMBIENTALES - | I98: 0 | J98: 1644154307
A99: 890201213 | B99: UNIVERSIDADES PÚBLICAS - UNIVERSIDAD INDUSTRIAL DE SANTANDER | C99: =SUMIF(G:J,Tabla3[[#This Row],[NIT]],I:I) -> 0 | D99: =SUMIF(G:J,Tabla3[[#This Row],[NIT]],J:J) -> 0 | G99: 900474727 | H99: MINISTERIO DE SALUD Y PROTECCION SOCIAL | I99: 0 | J99: 2.557882011e+10
A100: 890201573 | B100: CORPORACIÓN AUTÓNOMA REGIONAL PARA LA DEFENSA DE LA MESETA DE BUCARAMANGA (CDMB) | C100: =SUMIF(G:J,Tabla3[[#This Row],[NIT]],I:I) -> 0 | D100: =SUMIF(G:J,Tabla3[[#This Row],[NIT]],J:J) -> 0 | G100: 900475460 | H100: DIRECCION NACIONAL DE INTELIGENCIA | I100: 0 | J100: 44778910.56
A101: 890399010 | B101: UNIVERSIDADES PÚBLICAS - UNIVERSIDAD DEL VALLE | C101: =SUMIF(G:J,Tabla3[[#This Row],[NIT]],I:I) -> 0 | D101: =SUMIF(G:J,Tabla3[[#This Row],[NIT]],J:J) -> 0 | G101: 900475780 | H101: UNIDAD NACIONAL DE PROTECCION - UNP | I101: 560640653 | J101: 2822164548
A102: 890480123 | B102: UNIVERSIDADES PÚBLICAS - UNIVERSIDAD DE CARTAGENA | C102: =SUMIF(G:J,Tabla3[[#This Row],[NIT]],I:I) -> 0 | D102: =SUMIF(G:J,Tabla3[[#This Row],[NIT]],J:J) -> 0 | G102: 900477169 | H102: AGENCIA PARA LA REINCORPORACION Y LA NORMALIZACION | I102: 163599527 | J102: 57848142.99
A103: 890500622 | B103: UNIVERSIDADES PÚBLICAS - UNIVERSIDAD FRANCISCO DE PAULA SANTANDER | C103: =SUMIF(G:J,Tabla3[[#This Row],[NIT]],I:I) -> 0 | D103: =SUMIF(G:J,Tabla3[[#This Row],[NIT]],J:J) -> 0 | G103: 900477235 | H103: UNIDAD ADMINISTRATIVA ESPECIAL MIGRACION COLOMBIA | I103: 0 | J103: 728532451.1
A104: 890501510 | B104: UNIVERSIDADES PÚBLICAS - UNIVERSIDAD DE PAMPLONA | C104: =SUMIF(G:J,Tabla3[[#This Row],[NIT]],I:I) -> 0 | D104: =SUMIF(G:J,Tabla3[[#This Row],[NIT]],J:J) -> 0 | G104: 900478966 | H104: UNIDAD NACIONAL PARA LA GESTION DEL RIESGO DE DESA | I104: 213087325.6 | J104: 7491416398
A105: 890505253 | B105: CORPORACIÓN AUTÓNOMA REGIONAL DE LA FRONTERA NORORIENTAL (CORPONOR) | C105: =SUMIF(G:J,Tabla3[[#This Row],[NIT]],I:I) -> 0 | D105: =SUMIF(G:J,Tabla3[[#This Row],[NIT]],J:J) -> 4193679219 | G105: 900479669 | H105: UNIDAD ADMINISTRATIVA ESPECIAL AUTORIDAD NACIONAL | I105: 0 | J105: 22615332.29
A106: 890680062 | B106: UNIVERSIDADES PÚBLICAS - UNIVERSIDAD DE CUNDINAMARCA | C106: =SUMIF(G:J,Tabla3[[#This Row],[NIT]],I:I) -> 0 | D106: =SUMIF(G:J,Tabla3[[#This Row],[NIT]],J:J) -> 0 | G106: 900483991 | H106: AGENCIA NACIONAL INMOBILIARIA VIRGILIO BARCO VARGA | I106: 0 | J106: 36873651.93
A107: 890700640 | B107: UNIVERSIDADES PÚBLICAS - UNIVERSIDAD DEL TOLIMA | C107: =SUMIF(G:J,Tabla3[[#This Row],[NIT]],I:I) -> 0 | D107: =SUMIF(G:J,Tabla3[[#This Row],[NIT]],J:J) -> 0 | G107: 900484852 | H107: AGENCIA PRESIDENCIAL DE COOPERACION INTERNACIONAL | I107: 0 | J107: 35445405.93
A108: 890704536 | B108: CORPORACIÓN AUTÓNOMA REGIONAL DEL TOLIMA (CORTOLIMA) | C108: =SUMIF(G:J,Tabla3[[#This Row],[NIT]],I:I) -> 0 | D108: =SUMIF(G:J,Tabla3[[#This Row],[NIT]],J:J) -> 7724631688 | G108: 900490473 | H108: UNIDAD ADMINISTRATIVA ESPECIAL DE ATENCION Y REPAR | I108: 0 | J108: 566871082.7
A109: 890801063 | B109: UNIVERSIDADES PÚBLICAS - UNIVERSIDAD DE CALDAS | C109: =SUMIF(G:J,Tabla3[[#This Row],[NIT]],I:I) -> 0 | D109: =SUMIF(G:J,Tabla3[[#This Row],[NIT]],J:J) -> 0 | G109: 900492141 | H109: CENTRO DE MEMORIA HISTORICA | I109: 0 | J109: 11923535.71
A110: 890803005 | B110: CORPORACIÓN AUTÓNOMA REGIONAL DE CALDAS (CORPOCALDAS) | C110: =SUMIF(G:J,Tabla3[[#This Row],[NIT]],I:I) -> 0 | D110: =SUMIF(G:J,Tabla3[[#This Row],[NIT]],J:J) -> 467608279.5 | G110: 900494393 | H110: U.A.E. INSTITUTO NACIONAL DE METROLOGIA - INM | I110: 0 | J110: 6720633.81
A111: 890907748 | B111: CORPORACIÓN PARA EL DESARROLLO SOSTENIBLE DEL URABÁ (CORPOURABÁ) | C111: =SUMIF(G:J,Tabla3[[#This Row],[NIT]],I:I) -> 0 | D111: =SUMIF(G:J,Tabla3[[#This Row],[NIT]],J:J) -> 1494354994 | G111: 900498879 | H111: UNIDAD ADMINISTRATIVA ESPECIAL DE GESTION DE RESTI | I111: 741560023 | J111: 3012778603
A112: 890980040 | B112: UNIVERSIDADES PÚBLICAS - UNIVERSIDAD DE ANTIOQUIA | C112: =SUMIF(G:J,Tabla3[[#This Row],[NIT]],I:I) -> 0 | D112: =SUMIF(G:J,Tabla3[[#This Row],[NIT]],J:J) -> 0 | G112: 900507741 | H112: UNIDAD ADMINISTRATIVA ESPECIAL AGENCIA NACIONAL DE | I112: 0 | J112: 74526838.5
A113: 890999057 | B113: SUPERINTENDENCIA FINANCIERA DE COLOMBIA | C113: =SUMIF(G:J,Tabla3[[#This Row],[NIT]],I:I) -> 0 | D113: =SUMIF(G:J,Tabla3[[#This Row],[NIT]],J:J) -> 118686620.4 | G113: 900514813 | H113: AGENCIA NACIONAL DE CONTRATACION PUBLICA - COLOMBI | I113: 0 | J113: 739250874.7
A114: 891000627 | B114: CORPORACIÓN AUTÓNOMA REGIONAL DE LOS VALLES DEL SINÚ Y SAN JORGE (CVS) | C114: =SUMIF(G:J,Tabla3[[#This Row],[NIT]],I:I) -> 0 | D114: =SUMIF(G:J,Tabla3[[#This Row],[NIT]],J:J) -> 1962569823 | G114: 900523392 | H114: UNIDAD DE SERVICIOS PENITENCIARIOS Y CARCELARIOS | I114: 94559943.36 | J114: 904076283.4
A115: 891080031 | B115: UNIVERSIDADES PÚBLICAS - UNIVERSIDAD DE CORDOBA | C115: =SUMIF(G:J,Tabla3[[#This Row],[NIT]],I:I) -> 0 | D115: =SUMIF(G:J,Tabla3[[#This Row],[NIT]],J:J) -> 0 | G115: 900528648 | H115: UNIDAD ADMINISTRATIVA ESPECIAL AGENCIA DEL INSPECT | I115: 0 | J115: 90139707.38
A116: 891180084 | B116: UNIVERSIDADES PÚBLICAS - UNIVERSIDAD SURCOLOMBIANA | C116: =SUMIF(G:J,Tabla3[[#This Row],[NIT]],I:I) -> 0 | D116: =SUMIF(G:J,Tabla3[[#This Row],[NIT]],J:J) -> 0 | G116: 900678508 | H116: UNIDAD ADMINISTRATIVA ESPECIAL DEL SERVICIO PÚBLIC | I116: 0 | J116: 3255633.26
A117: 891190346 | B117: UNIVERSIDADES PÚBLICAS - UNIVERSIDAD DE LA AMAZONIA | C117: =SUMIF(G:J,Tabla3[[#This Row],[NIT]],I:I) -> 0 | D117: =SUMIF(G:J,Tabla3[[#This Row],[NIT]],J:J) -> 0 | G117: 900852998 | H117: AGENCIA NACIONAL DE SEGURIDAD VIAL | I117: 0 | J117: 108916790
A118: 891222322 | B118: CORPORACIÓN AUTÓNOMA REGIONAL DE NARIÑO (CORPONARIÑO) | C118: =SUMIF(G:J,Tabla3[[#This Row],[NIT]],I:I) -> 0 | D118: =SUMIF(G:J,Tabla3[[#This Row],[NIT]],J:J) -> 0 | G118: 900948953 | H118: AGENCIA NACIONAL DE TIERRAS - ANT | I118: 0 | J118: 1.097784944e+10
A119: 891410354 | B119: CORPORACIÓN AUTÓNOMA REGIONAL DE RISARALDA (CARDER) | C119: =SUMIF(G:J,Tabla3[[#This Row],[NIT]],I:I) -> 0 | D119: =SUMIF(G:J,Tabla3[[#This Row],[NIT]],J:J) -> 677599078.6 | G119: 900948958 | H119: AGENCIA DE DESARROLLO RURAL - ADR | I119: 0 | J119: 802937284.9
A120: 891480035 | B120: UNIVERSIDADES PÚBLICAS - UNIVERSIDAD TECNOLOGICA DE PEREIRA | C120: =SUMIF(G:J,Tabla3[[#This Row],[NIT]],I:I) -> 0 | D120: =SUMIF(G:J,Tabla3[[#This Row],[NIT]],J:J) -> 0 | G120: 901006886 | H120: AGENCIA DE RENOVACION DEL TERRITORIO | I120: 0 | J120: 139883815.7
A121: 891500319 | B121: UNIVERSIDADES PÚBLICAS - UNIVERSIDAD DEL CAUCA | C121: =SUMIF(G:J,Tabla3[[#This Row],[NIT]],I:I) -> 0 | D121: =SUMIF(G:J,Tabla3[[#This Row],[NIT]],J:J) -> 0 | G121: 901140004 | H121: JURISDICCION ESPECIAL PARA LA PAZ | I121: 0 | J121: 520921053.2
A122: 891501885 | B122: CORPORACIÓN AUTÓNOMA REGIONAL DEL CAUCA (CRC) | C122: =SUMIF(G:J,Tabla3[[#This Row],[NIT]],I:I) -> 0 | D122: =SUMIF(G:J,Tabla3[[#This Row],[NIT]],J:J) -> 589582422 | G122: 901717412 | H122: CONSEJO NACIONAL ELECTORAL | I122: 0 | J122: 1675744576
A123: 891680089 | B123: UNIVERSIDADES PÚBLICAS - UNIVERSIDAD TECNOLOGICA DEL CHOCO DIEGO LUIS CORDOBA | C123: =SUMIF(G:J,Tabla3[[#This Row],[NIT]],I:I) -> 0 | D123: =SUMIF(G:J,Tabla3[[#This Row],[NIT]],J:J) -> 0
A124: 891780111 | B124: UNIVERSIDADES PÚBLICAS - UNIVERSIDAD DEL MAGDALENA | C124: =SUMIF(G:J,Tabla3[[#This Row],[NIT]],I:I) -> 0 | D124: =SUMIF(G:J,Tabla3[[#This Row],[NIT]],J:J) -> 0
A125: 891800330 | B125: UNIVERSIDADES PÚBLICAS - UNIVERSIDAD PEDAGOGICA Y TECNOLOGICA DE COLOMBIA | C125: =SUMIF(G:J,Tabla3[[#This Row],[NIT]],I:I) -> 0 | D125: =SUMIF(G:J,Tabla3[[#This Row],[NIT]],J:J) -> 0
A126: 892000757 | B126: UNIVERSIDADES PÚBLICAS - UNIVERSIDAD DE LOS LLANOS | C126: =SUMIF(G:J,Tabla3[[#This Row],[NIT]],I:I) -> 0 | D126: =SUMIF(G:J,Tabla3[[#This Row],[NIT]],J:J) -> 0
A127: 892115029 | B127: UNIVERSIDADES PÚBLICAS - UNIVERSIDAD DE LA GUAJIRA | C127: =SUMIF(G:J,Tabla3[[#This Row],[NIT]],I:I) -> 0 | D127: =SUMIF(G:J,Tabla3[[#This Row],[NIT]],J:J) -> 0
A128: 892115314 | B128: CORPORACIÓN AUTÓNOMA REGIONAL DE LA GUAJIRA (CORPOGUAJIRA) | C128: =SUMIF(G:J,Tabla3[[#This Row],[NIT]],I:I) -> 0 | D128: =SUMIF(G:J,Tabla3[[#This Row],[NIT]],J:J) -> 0
A129: 892200323 | B129: UNIVERSIDADES PÚBLICAS - UNIVERSIDAD DE SUCRE | C129: =SUMIF(G:J,Tabla3[[#This Row],[NIT]],I:I) -> 0 | D129: =SUMIF(G:J,Tabla3[[#This Row],[NIT]],J:J) -> 0
A130: 892300285 | B130: UNIVERSIDADES PÚBLICAS - UNIVERSIDAD POPULAR DEL CESAR | C130: =SUMIF(G:J,Tabla3[[#This Row],[NIT]],I:I) -> 0 | D130: =SUMIF(G:J,Tabla3[[#This Row],[NIT]],J:J) -> 0
A131: 892301483 | B131: CORPORACIÓN AUTÓNOMA REGIONAL DEL CESAR (CORPOCESAR) | C131: =SUMIF(G:J,Tabla3[[#This Row],[NIT]],I:I) -> 0 | D131: =SUMIF(G:J,Tabla3[[#This Row],[NIT]],J:J) -> 838533994.5
A132: 892400461 | B132: INSTITUTO NACIONAL DE FORMACIÓN TÉCNICA PROFESIONAL DE SAN ANDRES Y PROVIDENCIA | C132: =SUMIF(G:J,Tabla3[[#This Row],[NIT]],I:I) -> 0 | D132: =SUMIF(G:J,Tabla3[[#This Row],[NIT]],J:J) -> 0
A133: 899999001 | B133: MINISTERIO DE EDUCACIÓN NACIONAL - GESTIÓN GENERAL | C133: =SUMIF(G:J,Tabla3[[#This Row],[NIT]],I:I) -> 0 | D133: =SUMIF(G:J,Tabla3[[#This Row],[NIT]],J:J) -> 0
A134: 899999003 | B134: MINISTERIO DE DEFENSA NACIONAL - GESTIÓN GENERAL | C134: =SUMIF(G:J,Tabla3[[#This Row],[NIT]],I:I) -> 1.574978081e+11 | D134: =SUMIF(G:J,Tabla3[[#This Row],[NIT]],J:J) -> 1.993350491e+11
A135: 899999004 | B135: INSTITUTO GEOGRÁFICO AGUSTÍN CODAZZI - IGAC | C135: =SUMIF(G:J,Tabla3[[#This Row],[NIT]],I:I) -> 0 | D135: =SUMIF(G:J,Tabla3[[#This Row],[NIT]],J:J) -> 0
A136: 899999007 | B136: SUPERINTENDENCIA DE NOTARIADO Y REGISTRO | C136: =SUMIF(G:J,Tabla3[[#This Row],[NIT]],I:I) -> 3542647196 | D136: =SUMIF(G:J,Tabla3[[#This Row],[NIT]],J:J) -> 1.038355891e+10
A137: 899999011 | B137: DEPARTAMENTO ADMINISTRATIVO NACIONAL DE PLANEACIÓN - GESTIÓN GENERAL | C137: =SUMIF(G:J,Tabla3[[#This Row],[NIT]],I:I) -> 458997921 | D137: =SUMIF(G:J,Tabla3[[#This Row],[NIT]],J:J) -> 1.650887304e+10
A138: 899999020 | B138: DEPARTAMENTO ADMINISTRATIVO DE LA FUNCIÓN PÚBLICA- GESTIÓN GENERAL | C138: =SUMIF(G:J,Tabla3[[#This Row],[NIT]],I:I) -> 0 | D138: =SUMIF(G:J,Tabla3[[#This Row],[NIT]],J:J) -> 0
A139: 899999022 | B139: MINISTERIO DE MINAS Y ENERGÍA - GESTIÓN GENERAL | C139: =SUMIF(G:J,Tabla3[[#This Row],[NIT]],I:I) -> 0 | D139: =SUMIF(G:J,Tabla3[[#This Row],[NIT]],J:J) -> 1.373881968e+10
A140: 899999027 | B140: DEPARTAMENTO ADMINISTRATIVO NACIONAL DE ESTADÍSTICA (DANE) - GESTIÓN GENERAL | C140: =SUMIF(G:J,Tabla3[[#This Row],[NIT]],I:I) -> 0 | D140: =SUMIF(G:J,Tabla3[[#This Row],[NIT]],J:J) -> 0
A141: 899999028 | B141: MINISTERIO DE AGRICULTURA Y DESARROLLO RURAL - GESTIÓN GENERAL | C141: =SUMIF(G:J,Tabla3[[#This Row],[NIT]],I:I) -> 0 | D141: =SUMIF(G:J,Tabla3[[#This Row],[NIT]],J:J) -> 4114455901
A142: 899999034 | B142: SERVICIO NACIONAL DE APRENDIZAJE (SENA) | C142: =SUMIF(G:J,Tabla3[[#This Row],[NIT]],I:I) -> 0 | D142: =SUMIF(G:J,Tabla3[[#This Row],[NIT]],J:J) -> 0
A143: 899999040 | B143: REGISTRADURÍA NACIONAL DEL ESTADO CIVIL - GESTIÓN GENERAL | C143: =SUMIF(G:J,Tabla3[[#This Row],[NIT]],I:I) -> 0 | D143: =SUMIF(G:J,Tabla3[[#This Row],[NIT]],J:J) -> 0
A144: 899999042 | B144: MINISTERIO DE RELACIONES EXTERIORES - GESTIÓN GENERAL | C144: =SUMIF(G:J,Tabla3[[#This Row],[NIT]],I:I) -> 783477154 | D144: =SUMIF(G:J,Tabla3[[#This Row],[NIT]],J:J) -> 176281485.7
A145: 899999048 | B145: INSTITUTO DE PLANIFICACIÓN Y PROMOCIÓN DE SOLUCIONES ENERGÉTICAS PARA LAS ZONAS NO INTERCONECTADAS - IPSE | C145: =SUMIF(G:J,Tabla3[[#This Row],[NIT]],I:I) -> 0 | D145: =SUMIF(G:J,Tabla3[[#This Row],[NIT]],J:J) -> 1854135204
A146: 899999050 | B146: UNIDAD ADMINISTRATIVA ESPECIAL DE ORGANIZACIONES SOLIDARIAS | C146: =SUMIF(G:J,Tabla3[[#This Row],[NIT]],I:I) -> 0 | D146: =SUMIF(G:J,Tabla3[[#This Row],[NIT]],J:J) -> 0
A147: 899999053 | B147: MINISTERIO DE TECNOLOGÍAS DE LA INFORMACIÓN Y LAS COMUNICACIONES - GESTIÓN GENERAL | C147: =SUMIF(G:J,Tabla3[[#This Row],[NIT]],I:I) -> 0 | D147: =SUMIF(G:J,Tabla3[[#This Row],[NIT]],J:J) -> 8498845114
A148: 899999054 | B148: ESCUELA SUPERIOR DE ADMINISTRACIÓN PÚBLICA (ESAP) | C148: =SUMIF(G:J,Tabla3[[#This Row],[NIT]],I:I) -> 0 | D148: =SUMIF(G:J,Tabla3[[#This Row],[NIT]],J:J) -> 126575959.2
A149: 899999055 | B149: COMISIÓN DE REGULACIÓN DE INFRAESTRUCTURA Y TRANSPORTE | C149: =SUMIF(G:J,Tabla3[[#This Row],[NIT]],I:I) -> 0 | D149: =SUMIF(G:J,Tabla3[[#This Row],[NIT]],J:J) -> 2507307861
A150: 899999059 | B150: UNIDAD ADMINISTRATIVA ESPECIAL DE LA AERONÁUTICA CIVIL | C150: =SUMIF(G:J,Tabla3[[#This Row],[NIT]],I:I) -> 0 | D150: =SUMIF(G:J,Tabla3[[#This Row],[NIT]],J:J) -> 6236457005
A151: 899999063 | B151: UNIVERSIDADES PÚBLICAS - UNIVERSIDAD NACIONAL DE COLOMBIA | C151: =SUMIF(G:J,Tabla3[[#This Row],[NIT]],I:I) -> 0 | D151: =SUMIF(G:J,Tabla3[[#This Row],[NIT]],J:J) -> 0
A152: 899999067 | B152: CONTRALORÍA GENERAL DE LA REPÚBLICA - GESTIÓN GENERAL | C152: =SUMIF(G:J,Tabla3[[#This Row],[NIT]],I:I) -> 0 | D152: =SUMIF(G:J,Tabla3[[#This Row],[NIT]],J:J) -> 2752942057
A153: 899999069 | B153: INSTITUTO COLOMBIANO AGROPECUARIO (ICA) | C153: =SUMIF(G:J,Tabla3[[#This Row],[NIT]],I:I) -> 368469108 | D153: =SUMIF(G:J,Tabla3[[#This Row],[NIT]],J:J) -> 95130.91
A154: 899999073 | B154: CAJA DE SUELDOS DE RETIRO DE LA POLICÍA NACIONAL | C154: =SUMIF(G:J,Tabla3[[#This Row],[NIT]],I:I) -> 0 | D154: =SUMIF(G:J,Tabla3[[#This Row],[NIT]],J:J) -> 2.005464546e+10
A155: 899999083 | B155: PRESIDENCIA DE LA REPÚBLICA - GESTIÓN GENERAL | C155: =SUMIF(G:J,Tabla3[[#This Row],[NIT]],I:I) -> 196201561.1 | D155: =SUMIF(G:J,Tabla3[[#This Row],[NIT]],J:J) -> 1003670874
A156: 899999086 | B156: SUPERINTENDENCIA DE SOCIEDADES | C156: =SUMIF(G:J,Tabla3[[#This Row],[NIT]],I:I) -> 0 | D156: =SUMIF(G:J,Tabla3[[#This Row],[NIT]],J:J) -> 823931659.2
A157: 899999090 | B157: MINISTERIO DE HACIENDA Y CRÉDITO PÚBLICO - GESTIÓN GENERAL | C157: =SUMIF(G:J,Tabla3[[#This Row],[NIT]],I:I) -> 0 | D157: =SUMIF(G:J,Tabla3[[#This Row],[NIT]],J:J) -> 157824652.8
A158: 899999096 | B158: INSTITUTO CARO Y CUERVO | C158: =SUMIF(G:J,Tabla3[[#This Row],[NIT]],I:I) -> 0 | D158: =SUMIF(G:J,Tabla3[[#This Row],[NIT]],J:J) -> 0
A159: 899999098 | B159: CÁMARA DE REPRESENTANTES | C159: =SUMIF(G:J,Tabla3[[#This Row],[NIT]],I:I) -> 55358723 | D159: =SUMIF(G:J,Tabla3[[#This Row],[NIT]],J:J) -> 60027154.61
A160: 899999102 | B160: FUERZA AÉREA | C160: =SUMIF(G:J,Tabla3[[#This Row],[NIT]],I:I) -> 0 | D160: =SUMIF(G:J,Tabla3[[#This Row],[NIT]],J:J) -> 0
A161: 899999103 | B161: SENADO DE LA REPÚBLICA | C161: =SUMIF(G:J,Tabla3[[#This Row],[NIT]],I:I) -> 397726941.9 | D161: =SUMIF(G:J,Tabla3[[#This Row],[NIT]],J:J) -> 3504390822
A162: 899999118 | B162: CAJA DE RETIRO DE LAS FUERZAS MILITARES | C162: =SUMIF(G:J,Tabla3[[#This Row],[NIT]],I:I) -> 0 | D162: =SUMIF(G:J,Tabla3[[#This Row],[NIT]],J:J) -> 1.355117086e+10
A163: 899999119 | B163: PROCURADURÍA GENERAL DE LA NACIÓN - GESTIÓN GENERAL | C163: =SUMIF(G:J,Tabla3[[#This Row],[NIT]],I:I) -> 632263030 | D163: =SUMIF(G:J,Tabla3[[#This Row],[NIT]],J:J) -> 1.877387593e+10
A164: 899999124 | B164: UNIVERSIDADES PÚBLICAS - UNIVERSIDAD PEDAGOGICA NACIONAL | C164: =SUMIF(G:J,Tabla3[[#This Row],[NIT]],I:I) -> 0 | D164: =SUMIF(G:J,Tabla3[[#This Row],[NIT]],J:J) -> 0
A165: 899999162 | B165: AGENCIA LOGÍSTICA DE LAS FUERZAS MILITARES | C165: =SUMIF(G:J,Tabla3[[#This Row],[NIT]],I:I) -> 428939357.6 | D165: =SUMIF(G:J,Tabla3[[#This Row],[NIT]],J:J) -> 161198424.6
A166: 899999230 | B166: UNIVERSIDADES PÚBLICAS - UNIVERSIDAD DISTRITAL FRANCISCO JOSE DE CALDAS | C166: =SUMIF(G:J,Tabla3[[#This Row],[NIT]],I:I) -> 0 | D166: =SUMIF(G:J,Tabla3[[#This Row],[NIT]],J:J) -> 0
A167: 899999238 | B167: CORPORACIÓN AUTÓNOMA REGIONAL PARA EL DESARROLLO SOSTENIBLE DEL CHOCO (CODECHOCO) | C167: =SUMIF(G:J,Tabla3[[#This Row],[NIT]],I:I) -> 0 | D167: =SUMIF(G:J,Tabla3[[#This Row],[NIT]],J:J) -> 0
A168: 899999239 | B168: INSTITUTO COLOMBIANO DE BIENESTAR FAMILIAR (ICBF) | C168: =SUMIF(G:J,Tabla3[[#This Row],[NIT]],I:I) -> 0 | D168: =SUMIF(G:J,Tabla3[[#This Row],[NIT]],J:J) -> 0
A169: 899999294 | B169: SERVICIO GEOLÓGICO COLOMBIANO | C169: =SUMIF(G:J,Tabla3[[#This Row],[NIT]],I:I) -> 0 | D169: =SUMIF(G:J,Tabla3[[#This Row],[NIT]],J:J) -> 264582107.1
A170: 899999296 | B170: MINISTERIO DE CIENCIA, TECNOLOGÍA E INNOVACIÓN - GESTIÓN GENERAL | C170: =SUMIF(G:J,Tabla3[[#This Row],[NIT]],I:I) -> 0 | D170: =SUMIF(G:J,Tabla3[[#This Row],[NIT]],J:J) -> 176531515
A171: 899999306 | B171: MINISTERIO DEL DEPORTE - GESTIÓN GENERAL | C171: =SUMIF(G:J,Tabla3[[#This Row],[NIT]],I:I) -> 34064856 | D171: =SUMIF(G:J,Tabla3[[#This Row],[NIT]],J:J) -> 505280980.1
A172: 899999327 | B172: UNIDAD ADMINISTRATIVA ESPECIAL FONDO NACIONAL DE ESTUPEFACIENTES | C172: =SUMIF(G:J,Tabla3[[#This Row],[NIT]],I:I) -> 0 | D172: =SUMIF(G:J,Tabla3[[#This Row],[NIT]],J:J) -> 0
A173: 899999403 | B173: INSTITUTO NACIONAL DE SALUD (INS) | C173: =SUMIF(G:J,Tabla3[[#This Row],[NIT]],I:I) -> 0 | D173: =SUMIF(G:J,Tabla3[[#This Row],[NIT]],J:J) -> 123074025.9
A174: 899999717 | B174: DEFENSA CIVIL COLOMBIANA, GUILLERMO LEÓN VALENCIA | C174: =SUMIF(G:J,Tabla3[[#This Row],[NIT]],I:I) -> 0 | D174: =SUMIF(G:J,Tabla3[[#This Row],[NIT]],J:J) -> 429435491
A175: 899999734 | B175: FONDO DE PREVISIÓN SOCIAL DEL CONGRESO - CESANTÍAS Y VIVIENDA | C175: =SUMIF(G:J,Tabla3[[#This Row],[NIT]],I:I) -> 935657852 | D175: =SUMIF(G:J,Tabla3[[#This Row],[NIT]],J:J) -> 1176842766
A176: 899999737 | B176: FONDO ROTATORIO DE LA REGISTRADURÍA | C176: =SUMIF(G:J,Tabla3[[#This Row],[NIT]],I:I) -> 0 | D176: =SUMIF(G:J,Tabla3[[#This Row],[NIT]],J:J) -> 0
A177: 900003409 | B177: COMISIÓN NACIONAL DEL SERVICIO CIVIL | C177: =SUMIF(G:J,Tabla3[[#This Row],[NIT]],I:I) -> 75829826.54 | D177: =SUMIF(G:J,Tabla3[[#This Row],[NIT]],J:J) -> 414243181.3
A178: 900034993 | B178: COMISIÓN DE REGULACIÓN DE ENERGÍA Y GAS (CREG) | C178: =SUMIF(G:J,Tabla3[[#This Row],[NIT]],I:I) -> 2873341054 | D178: =SUMIF(G:J,Tabla3[[#This Row],[NIT]],J:J) -> 6377111234
A179: 900039527 | B179: ARMADA | C179: =SUMIF(G:J,Tabla3[[#This Row],[NIT]],I:I) -> 0 | D179: =SUMIF(G:J,Tabla3[[#This Row],[NIT]],J:J) -> 0
A180: 900039533 | B180: DEPARTAMENTO ADMINISTRATIVO PARA LA PROSPERIDAD SOCIAL - GESTIÓN GENERAL | C180: =SUMIF(G:J,Tabla3[[#This Row],[NIT]],I:I) -> 0 | D180: =SUMIF(G:J,Tabla3[[#This Row],[NIT]],J:J) -> 5180238029
A181: 900180739 | B181: UNIDAD ADMINISTRATIVA ESPECIAL JUNTA CENTRAL CONTADORES | C181: =SUMIF(G:J,Tabla3[[#This Row],[NIT]],I:I) -> 82293935 | D181: =SUMIF(G:J,Tabla3[[#This Row],[NIT]],J:J) -> 370642185
A182: 900334265 | B182: AGENCIA NACIONAL DEL ESPECTRO - ANE | C182: =SUMIF(G:J,Tabla3[[#This Row],[NIT]],I:I) -> 0 | D182: =SUMIF(G:J,Tabla3[[#This Row],[NIT]],J:J) -> 82151805.36
A183: 900373379 | B183: POLICÍA NACIONAL - EDUCACIÓN | C183: =SUMIF(G:J,Tabla3[[#This Row],[NIT]],I:I) -> 0 | D183: =SUMIF(G:J,Tabla3[[#This Row],[NIT]],J:J) -> 0
A184: 900373913 | B184: UNIDAD ADMINISTRATIVA ESPECIAL DE GESTIÓN PENSIONAL Y CONTRIBUCIONES PARAFISCALES DE LA PROTECCIÓN SOCIAL (UGPPP) - GESTIÓN GENERAL | C184: =SUMIF(G:J,Tabla3[[#This Row],[NIT]],I:I) -> 0 | D184: =SUMIF(G:J,Tabla3[[#This Row],[NIT]],J:J) -> 244899817.6
A185: 900384997 | B185: UNIDAD ADMINISTRATIVA ESPECIAL DE LA JUSTICIA PENAL MILITAR Y POLICIAL | C185: =SUMIF(G:J,Tabla3[[#This Row],[NIT]],I:I) -> 0 | D185: =SUMIF(G:J,Tabla3[[#This Row],[NIT]],J:J) -> 111002384.2
A186: 900450205 | B186: FONDO ADAPTACIÓN | C186: =SUMIF(G:J,Tabla3[[#This Row],[NIT]],I:I) -> 0 | D186: =SUMIF(G:J,Tabla3[[#This Row],[NIT]],J:J) -> 1994059348
A187: 900457461 | B187: MINISTERIO DE JUSTICIA Y DEL DERECHO - GESTIÓN GENERAL | C187: =SUMIF(G:J,Tabla3[[#This Row],[NIT]],I:I) -> 445513490 | D187: =SUMIF(G:J,Tabla3[[#This Row],[NIT]],J:J) -> 837533465.6
A188: 900463725 | B188: MINISTERIO DE VIVIENDA, CIUDAD Y TERRITORIO - GESTIÓN GENERAL | C188: =SUMIF(G:J,Tabla3[[#This Row],[NIT]],I:I) -> 0 | D188: =SUMIF(G:J,Tabla3[[#This Row],[NIT]],J:J) -> 579552384.9
A189: 900467239 | B189: AUTORIDAD NACIONAL DE LICENCIAS AMBIENTALES ANLA | C189: =SUMIF(G:J,Tabla3[[#This Row],[NIT]],I:I) -> 0 | D189: =SUMIF(G:J,Tabla3[[#This Row],[NIT]],J:J) -> 1644154307
A190: 900474727 | B190: MINISTERIO DE SALUD Y PROTECCIÓN SOCIAL - GESTIÓN GENERAL | C190: =SUMIF(G:J,Tabla3[[#This Row],[NIT]],I:I) -> 0 | D190: =SUMIF(G:J,Tabla3[[#This Row],[NIT]],J:J) -> 2.557882011e+10
A191: 900475460 | B191: DEPARTAMENTO ADMINISTRATIVO DIRECCIÓN NACIONAL DE INTELIGENCIA - GESTIÓN GENERAL | C191: =SUMIF(G:J,Tabla3[[#This Row],[NIT]],I:I) -> 0 | D191: =SUMIF(G:J,Tabla3[[#This Row],[NIT]],J:J) -> 44778910.56
A192: 900475780 | B192: UNIDAD NACIONAL DE PROTECCIÓN - UNP | C192: =SUMIF(G:J,Tabla3[[#This Row],[NIT]],I:I) -> 560640653 | D192: =SUMIF(G:J,Tabla3[[#This Row],[NIT]],J:J) -> 2822164548
A193: 900477169 | B193: AGENCIA PARA LA REINCORPORACIÓN Y LA NORMALIZACIÓN - ARN | C193: =SUMIF(G:J,Tabla3[[#This Row],[NIT]],I:I) -> 163599527 | D193: =SUMIF(G:J,Tabla3[[#This Row],[NIT]],J:J) -> 57848142.99
A194: 900477235 | B194: UNIDAD ADMINISTRATIVA ESPECIAL MIGRACIÓN COLOMBIA | C194: =SUMIF(G:J,Tabla3[[#This Row],[NIT]],I:I) -> 0 | D194: =SUMIF(G:J,Tabla3[[#This Row],[NIT]],J:J) -> 728532451.1
A195: 900478966 | B195: UNIDAD NACIONAL PARA LA GESTIÓN DEL RIESGO DE DESASTRES | C195: =SUMIF(G:J,Tabla3[[#This Row],[NIT]],I:I) -> 213087325.6 | D195: =SUMIF(G:J,Tabla3[[#This Row],[NIT]],J:J) -> 7491416398
A196: 900479658 | B196: UNIDAD DE PLANIFICACIÓN DE TIERRAS RURALES, ADECUACIÓN DE TIERRAS Y USOS AGROPECUARIOS (UPRA) | C196: =SUMIF(G:J,Tabla3[[#This Row],[NIT]],I:I) -> 0 | D196: =SUMIF(G:J,Tabla3[[#This Row],[NIT]],J:J) -> 0
A197: 900479669 | B197: AUTORIDAD NACIONAL DE ACUICULTURA Y PESCA - AUNAP | C197: =SUMIF(G:J,Tabla3[[#This Row],[NIT]],I:I) -> 0 | D197: =SUMIF(G:J,Tabla3[[#This Row],[NIT]],J:J) -> 22615332.29
A198: 900483991 | B198: AGENCIA NACIONAL INMOBILIARIA VIRGILIO BARCO VARGAS | C198: =SUMIF(G:J,Tabla3[[#This Row],[NIT]],I:I) -> 0 | D198: =SUMIF(G:J,Tabla3[[#This Row],[NIT]],J:J) -> 36873651.93
A199: 900484852 | B199: AGENCIA PRESIDENCIAL DE COOPERACIÓN INTERNACIONAL DE COLOMBIA, APC - COLOMBIA | C199: =SUMIF(G:J,Tabla3[[#This Row],[NIT]],I:I) -> 0 | D199: =SUMIF(G:J,Tabla3[[#This Row],[NIT]],J:J) -> 35445405.93
A200: 900490473 | B200: UNIDAD DE ATENCIÓN Y REPARACIÓN INTEGRAL A LAS VÍCTIMAS | C200: =SUMIF(G:J,Tabla3[[#This Row],[NIT]],I:I) -> 0 | D200: =SUMIF(G:J,Tabla3[[#This Row],[NIT]],J:J) -> 566871082.7
... 29 more rows
